{"text_format":"3","workbook":"xlsx","n_sheets":1,"sheets":["Letni koledar"],"not_rendered":{"images":4,"defined_names":14},"read":"whole","date_system":"1900"}

{"sheet":"Letni koledar","index":0,"n_rows":55,"n_cols":21,"rows_kept":55,"merged":[[0,2,0,5]]}
[null,null,{"$f":"YEAR(TODAY())","v":2019},{"$nulls":17},"POMEMBNI DATUMI"]
[]
[null,null,"JANUAR",{"$nulls":7},"FEBRUAR",{"$nulls":9},"1. JANUAR"]
[null,null,"P","T","S","Č","P","S","N",null,"P","T","S","Č","P","S","N",{"$nulls":3},"NOVO LETO"]
[null,null,{"$f":"IF(DAY(JanNed1)=1,\"\",IF(AND(YEAR(JanNed1+1)=KoledarskoLeto,MONTH(JanNed1+1)=1),JanNed1+1,\"\"))","v":""},{"$f":"IF(DAY(JanNed1)=1,\"\",IF(AND(YEAR(JanNed1+2)=KoledarskoLeto,MONTH(JanNed1+2)=1),JanNed1+2,\"\"))","v":"2019-01-01"},{"$f":"IF(DAY(JanNed1)=1,\"\",IF(AND(YEAR(JanNed1+3)=KoledarskoLeto,MONTH(JanNed1+3)=1),JanNed1+3,\"\"))","v":"2019-01-02"},{"$f":"IF(DAY(JanNed1)=1,\"\",IF(AND(YEAR(JanNed1+4)=KoledarskoLeto,MONTH(JanNed1+4)=1),JanNed1+4,\"\"))","v":"2019-01-03"},{"$f":"IF(DAY(JanNed1)=1,\"\",IF(AND(YEAR(JanNed1+5)=KoledarskoLeto,MONTH(JanNed1+5)=1),JanNed1+5,\"\"))","v":"2019-01-04"},{"$f":"IF(DAY(JanNed1)=1,\"\",IF(AND(YEAR(JanNed1+6)=KoledarskoLeto,MONTH(JanNed1+6)=1),JanNed1+6,\"\"))","v":"2019-01-05"},{"$f":"IF(DAY(JanNed1)=1,IF(AND(YEAR(JanNed1)=KoledarskoLeto,MONTH(JanNed1)=1),JanNed1,\"\"),IF(AND(YEAR(JanNed1+7)=KoledarskoLeto,MONTH(JanNed1+7)=1),JanNed1+7,\"\"))","v":"2019-01-06"},null,{"$f":"IF(DAY(FebNed1)=1,\"\",IF(AND(YEAR(FebNed1+1)=KoledarskoLeto,MONTH(FebNed1+1)=2),FebNed1+1,\"\"))","v":""},{"$f":"IF(DAY(FebNed1)=1,\"\",IF(AND(YEAR(FebNed1+2)=KoledarskoLeto,MONTH(FebNed1+2)=2),FebNed1+2,\"\"))","v":""},{"$f":"IF(DAY(FebNed1)=1,\"\",IF(AND(YEAR(FebNed1+3)=KoledarskoLeto,MONTH(FebNed1+3)=2),FebNed1+3,\"\"))","v":""},{"$f":"IF(DAY(FebNed1)=1,\"\",IF(AND(YEAR(FebNed1+4)=KoledarskoLeto,MONTH(FebNed1+4)=2),FebNed1+4,\"\"))","v":""},{"$f":"IF(DAY(FebNed1)=1,\"\",IF(AND(YEAR(FebNed1+5)=KoledarskoLeto,MONTH(FebNed1+5)=2),FebNed1+5,\"\"))","v":"2019-02-01"},{"$f":"IF(DAY(FebNed1)=1,\"\",IF(AND(YEAR(FebNed1+6)=KoledarskoLeto,MONTH(FebNed1+6)=2),FebNed1+6,\"\"))","v":"2019-02-02"},{"$f":"IF(DAY(FebNed1)=1,IF(AND(YEAR(FebNed1)=KoledarskoLeto,MONTH(FebNed1)=2),FebNed1,\"\"),IF(AND(YEAR(FebNed1+7)=KoledarskoLeto,MONTH(FebNed1+7)=2),FebNed1+7,\"\"))","v":"2019-02-03"}]
[null,null,{"$f":"IF(DAY(JanNed1)=1,IF(AND(YEAR(JanNed1+1)=KoledarskoLeto,MONTH(JanNed1+1)=1),JanNed1+1,\"\"),IF(AND(YEAR(JanNed1+8)=KoledarskoLeto,MONTH(JanNed1+8)=1),JanNed1+8,\"\"))","v":"2019-01-07"},{"$f":"IF(DAY(JanNed1)=1,IF(AND(YEAR(JanNed1+2)=KoledarskoLeto,MONTH(JanNed1+2)=1),JanNed1+2,\"\"),IF(AND(YEAR(JanNed1+9)=KoledarskoLeto,MONTH(JanNed1+9)=1),JanNed1+9,\"\"))","v":"2019-01-08"},{"$f":"IF(DAY(JanNed1)=1,IF(AND(YEAR(JanNed1+3)=KoledarskoLeto,MONTH(JanNed1+3)=1),JanNed1+3,\"\"),IF(AND(YEAR(JanNed1+10)=KoledarskoLeto,MONTH(JanNed1+10)=1),JanNed1+10,\"\"))","v":"2019-01-09"},{"$f":"IF(DAY(JanNed1)=1,IF(AND(YEAR(JanNed1+4)=KoledarskoLeto,MONTH(JanNed1+4)=1),JanNed1+4,\"\"),IF(AND(YEAR(JanNed1+11)=KoledarskoLeto,MONTH(JanNed1+11)=1),JanNed1+11,\"\"))","v":"2019-01-10"},{"$f":"IF(DAY(JanNed1)=1,IF(AND(YEAR(JanNed1+5)=KoledarskoLeto,MONTH(JanNed1+5)=1),JanNed1+5,\"\"),IF(AND(YEAR(JanNed1+12)=KoledarskoLeto,MONTH(JanNed1+12)=1),JanNed1+12,\"\"))","v":"2019-01-11"},{"$f":"IF(DAY(JanNed1)=1,IF(AND(YEAR(JanNed1+6)=KoledarskoLeto,MONTH(JanNed1+6)=1),JanNed1+6,\"\"),IF(AND(YEAR(JanNed1+13)=KoledarskoLeto,MONTH(JanNed1+13)=1),JanNed1+13,\"\"))","v":"2019-01-12"},{"$f":"IF(DAY(JanNed1)=1,IF(AND(YEAR(JanNed1+7)=KoledarskoLeto,MONTH(JanNed1+7)=1),JanNed1+7,\"\"),IF(AND(YEAR(JanNed1+14)=KoledarskoLeto,MONTH(JanNed1+14)=1),JanNed1+14,\"\"))","v":"2019-01-13"},null,{"$f":"IF(DAY(FebNed1)=1,IF(AND(YEAR(FebNed1+1)=KoledarskoLeto,MONTH(FebNed1+1)=2),FebNed1+1,\"\"),IF(AND(YEAR(FebNed1+8)=KoledarskoLeto,MONTH(FebNed1+8)=2),FebNed1+8,\"\"))","v":"2019-02-04"},{"$f":"IF(DAY(FebNed1)=1,IF(AND(YEAR(FebNed1+2)=KoledarskoLeto,MONTH(FebNed1+2)=2),FebNed1+2,\"\"),IF(AND(YEAR(FebNed1+9)=KoledarskoLeto,MONTH(FebNed1+9)=2),FebNed1+9,\"\"))","v":"2019-02-05"},{"$f":"IF(DAY(FebNed1)=1,IF(AND(YEAR(FebNed1+3)=KoledarskoLeto,MONTH(FebNed1+3)=2),FebNed1+3,\"\"),IF(AND(YEAR(FebNed1+10)=KoledarskoLeto,MONTH(FebNed1+10)=2),FebNed1+10,\"\"))","v":"2019-02-06"},{"$f":"IF(DAY(FebNed1)=1,IF(AND(YEAR(FebNed1+4)=KoledarskoLeto,MONTH(FebNed1+4)=2),FebNed1+4,\"\"),IF(AND(YEAR(FebNed1+11)=KoledarskoLeto,MONTH(FebNed1+11)=2),FebNed1+11,\"\"))","v":"2019-02-07"},{"$f":"IF(DAY(FebNed1)=1,IF(AND(YEAR(FebNed1+5)=KoledarskoLeto,MONTH(FebNed1+5)=2),FebNed1+5,\"\"),IF(AND(YEAR(FebNed1+12)=KoledarskoLeto,MONTH(FebNed1+12)=2),FebNed1+12,\"\"))","v":"2019-02-08"},{"$f":"IF(DAY(FebNed1)=1,IF(AND(YEAR(FebNed1+6)=KoledarskoLeto,MONTH(FebNed1+6)=2),FebNed1+6,\"\"),IF(AND(YEAR(FebNed1+13)=KoledarskoLeto,MONTH(FebNed1+13)=2),FebNed1+13,\"\"))","v":"2019-02-09"},{"$f":"IF(DAY(FebNed1)=1,IF(AND(YEAR(FebNed1+7)=KoledarskoLeto,MONTH(FebNed1+7)=2),FebNed1+7,\"\"),IF(AND(YEAR(FebNed1+14)=KoledarskoLeto,MONTH(FebNed1+14)=2),FebNed1+14,\"\"))","v":"2019-02-10"},{"$nulls":3},"14. FEBRUAR"]
[null,null,{"$f":"IF(DAY(JanNed1)=1,IF(AND(YEAR(JanNed1+8)=KoledarskoLeto,MONTH(JanNed1+8)=1),JanNed1+8,\"\"),IF(AND(YEAR(JanNed1+15)=KoledarskoLeto,MONTH(JanNed1+15)=1),JanNed1+15,\"\"))","v":"2019-01-14"},{"$f":"IF(DAY(JanNed1)=1,IF(AND(YEAR(JanNed1+9)=KoledarskoLeto,MONTH(JanNed1+9)=1),JanNed1+9,\"\"),IF(AND(YEAR(JanNed1+16)=KoledarskoLeto,MONTH(JanNed1+16)=1),JanNed1+16,\"\"))","v":"2019-01-15"},{"$f":"IF(DAY(JanNed1)=1,IF(AND(YEAR(JanNed1+10)=KoledarskoLeto,MONTH(JanNed1+10)=1),JanNed1+10,\"\"),IF(AND(YEAR(JanNed1+17)=KoledarskoLeto,MONTH(JanNed1+17)=1),JanNed1+17,\"\"))","v":"2019-01-16"},{"$f":"IF(DAY(JanNed1)=1,IF(AND(YEAR(JanNed1+11)=KoledarskoLeto,MONTH(JanNed1+11)=1),JanNed1+11,\"\"),IF(AND(YEAR(JanNed1+18)=KoledarskoLeto,MONTH(JanNed1+18)=1),JanNed1+18,\"\"))","v":"2019-01-17"},{"$f":"IF(DAY(JanNed1)=1,IF(AND(YEAR(JanNed1+12)=KoledarskoLeto,MONTH(JanNed1+12)=1),JanNed1+12,\"\"),IF(AND(YEAR(JanNed1+19)=KoledarskoLeto,MONTH(JanNed1+19)=1),JanNed1+19,\"\"))","v":"2019-01-18"},{"$f":"IF(DAY(JanNed1)=1,IF(AND(YEAR(JanNed1+13)=KoledarskoLeto,MONTH(JanNed1+13)=1),JanNed1+13,\"\"),IF(AND(YEAR(JanNed1+20)=KoledarskoLeto,MONTH(JanNed1+20)=1),JanNed1+20,\"\"))","v":"2019-01-19"},{"$f":"IF(DAY(JanNed1)=1,IF(AND(YEAR(JanNed1+14)=KoledarskoLeto,MONTH(JanNed1+14)=1),JanNed1+14,\"\"),IF(AND(YEAR(JanNed1+21)=KoledarskoLeto,MONTH(JanNed1+21)=1),JanNed1+21,\"\"))","v":"2019-01-20"},null,{"$f":"IF(DAY(FebNed1)=1,IF(AND(YEAR(FebNed1+8)=KoledarskoLeto,MONTH(FebNed1+8)=2),FebNed1+8,\"\"),IF(AND(YEAR(FebNed1+15)=KoledarskoLeto,MONTH(FebNed1+15)=2),FebNed1+15,\"\"))","v":"2019-02-11"},{"$f":"IF(DAY(FebNed1)=1,IF(AND(YEAR(FebNed1+9)=KoledarskoLeto,MONTH(FebNed1+9)=2),FebNed1+9,\"\"),IF(AND(YEAR(FebNed1+16)=KoledarskoLeto,MONTH(FebNed1+16)=2),FebNed1+16,\"\"))","v":"2019-02-12"},{"$f":"IF(DAY(FebNed1)=1,IF(AND(YEAR(FebNed1+10)=KoledarskoLeto,MONTH(FebNed1+10)=2),FebNed1+10,\"\"),IF(AND(YEAR(FebNed1+17)=KoledarskoLeto,MONTH(FebNed1+17)=2),FebNed1+17,\"\"))","v":"2019-02-13"},{"$f":"IF(DAY(FebNed1)=1,IF(AND(YEAR(FebNed1+11)=KoledarskoLeto,MONTH(FebNed1+11)=2),FebNed1+11,\"\"),IF(AND(YEAR(FebNed1+18)=KoledarskoLeto,MONTH(FebNed1+18)=2),FebNed1+18,\"\"))","v":"2019-02-14"},{"$f":"IF(DAY(FebNed1)=1,IF(AND(YEAR(FebNed1+12)=KoledarskoLeto,MONTH(FebNed1+12)=2),FebNed1+12,\"\"),IF(AND(YEAR(FebNed1+19)=KoledarskoLeto,MONTH(FebNed1+19)=2),FebNed1+19,\"\"))","v":"2019-02-15"},{"$f":"IF(DAY(FebNed1)=1,IF(AND(YEAR(FebNed1+13)=KoledarskoLeto,MONTH(FebNed1+13)=2),FebNed1+13,\"\"),IF(AND(YEAR(FebNed1+20)=KoledarskoLeto,MONTH(FebNed1+20)=2),FebNed1+20,\"\"))","v":"2019-02-16"},{"$f":"IF(DAY(FebNed1)=1,IF(AND(YEAR(FebNed1+14)=KoledarskoLeto,MONTH(FebNed1+14)=2),FebNed1+14,\"\"),IF(AND(YEAR(FebNed1+21)=KoledarskoLeto,MONTH(FebNed1+21)=2),FebNed1+21,\"\"))","v":"2019-02-17"},{"$nulls":3},"VALENITNOVO"]
[null,null,{"$f":"IF(DAY(JanNed1)=1,IF(AND(YEAR(JanNed1+15)=KoledarskoLeto,MONTH(JanNed1+15)=1),JanNed1+15,\"\"),IF(AND(YEAR(JanNed1+22)=KoledarskoLeto,MONTH(JanNed1+22)=1),JanNed1+22,\"\"))","v":"2019-01-21"},{"$f":"IF(DAY(JanNed1)=1,IF(AND(YEAR(JanNed1+16)=KoledarskoLeto,MONTH(JanNed1+16)=1),JanNed1+16,\"\"),IF(AND(YEAR(JanNed1+23)=KoledarskoLeto,MONTH(JanNed1+23)=1),JanNed1+23,\"\"))","v":"2019-01-22"},{"$f":"IF(DAY(JanNed1)=1,IF(AND(YEAR(JanNed1+17)=KoledarskoLeto,MONTH(JanNed1+17)=1),JanNed1+17,\"\"),IF(AND(YEAR(JanNed1+24)=KoledarskoLeto,MONTH(JanNed1+24)=1),JanNed1+24,\"\"))","v":"2019-01-23"},{"$f":"IF(DAY(JanNed1)=1,IF(AND(YEAR(JanNed1+18)=KoledarskoLeto,MONTH(JanNed1+18)=1),JanNed1+18,\"\"),IF(AND(YEAR(JanNed1+25)=KoledarskoLeto,MONTH(JanNed1+25)=1),JanNed1+25,\"\"))","v":"2019-01-24"},{"$f":"IF(DAY(JanNed1)=1,IF(AND(YEAR(JanNed1+19)=KoledarskoLeto,MONTH(JanNed1+19)=1),JanNed1+19,\"\"),IF(AND(YEAR(JanNed1+26)=KoledarskoLeto,MONTH(JanNed1+26)=1),JanNed1+26,\"\"))","v":"2019-01-25"},{"$f":"IF(DAY(JanNed1)=1,IF(AND(YEAR(JanNed1+20)=KoledarskoLeto,MONTH(JanNed1+20)=1),JanNed1+20,\"\"),IF(AND(YEAR(JanNed1+27)=KoledarskoLeto,MONTH(JanNed1+27)=1),JanNed1+27,\"\"))","v":"2019-01-26"},{"$f":"IF(DAY(JanNed1)=1,IF(AND(YEAR(JanNed1+21)=KoledarskoLeto,MONTH(JanNed1+21)=1),JanNed1+21,\"\"),IF(AND(YEAR(JanNed1+28)=KoledarskoLeto,MONTH(JanNed1+28)=1),JanNed1+28,\"\"))","v":"2019-01-27"},null,{"$f":"IF(DAY(FebNed1)=1,IF(AND(YEAR(FebNed1+15)=KoledarskoLeto,MONTH(FebNed1+15)=2),FebNed1+15,\"\"),IF(AND(YEAR(FebNed1+22)=KoledarskoLeto,MONTH(FebNed1+22)=2),FebNed1+22,\"\"))","v":"2019-02-18"},{"$f":"IF(DAY(FebNed1)=1,IF(AND(YEAR(FebNed1+16)=KoledarskoLeto,MONTH(FebNed1+16)=2),FebNed1+16,\"\"),IF(AND(YEAR(FebNed1+23)=KoledarskoLeto,MONTH(FebNed1+23)=2),FebNed1+23,\"\"))","v":"2019-02-19"},{"$f":"IF(DAY(FebNed1)=1,IF(AND(YEAR(FebNed1+17)=KoledarskoLeto,MONTH(FebNed1+17)=2),FebNed1+17,\"\"),IF(AND(YEAR(FebNed1+24)=KoledarskoLeto,MONTH(FebNed1+24)=2),FebNed1+24,\"\"))","v":"2019-02-20"},{"$f":"IF(DAY(FebNed1)=1,IF(AND(YEAR(FebNed1+18)=KoledarskoLeto,MONTH(FebNed1+18)=2),FebNed1+18,\"\"),IF(AND(YEAR(FebNed1+25)=KoledarskoLeto,MONTH(FebNed1+25)=2),FebNed1+25,\"\"))","v":"2019-02-21"},{"$f":"IF(DAY(FebNed1)=1,IF(AND(YEAR(FebNed1+19)=KoledarskoLeto,MONTH(FebNed1+19)=2),FebNed1+19,\"\"),IF(AND(YEAR(FebNed1+26)=KoledarskoLeto,MONTH(FebNed1+26)=2),FebNed1+26,\"\"))","v":"2019-02-22"},{"$f":"IF(DAY(FebNed1)=1,IF(AND(YEAR(FebNed1+20)=KoledarskoLeto,MONTH(FebNed1+20)=2),FebNed1+20,\"\"),IF(AND(YEAR(FebNed1+27)=KoledarskoLeto,MONTH(FebNed1+27)=2),FebNed1+27,\"\"))","v":"2019-02-23"},{"$f":"IF(DAY(FebNed1)=1,IF(AND(YEAR(FebNed1+21)=KoledarskoLeto,MONTH(FebNed1+21)=2),FebNed1+21,\"\"),IF(AND(YEAR(FebNed1+28)=KoledarskoLeto,MONTH(FebNed1+28)=2),FebNed1+28,\"\"))","v":"2019-02-24"}]
[null,null,{"$f":"IF(DAY(JanNed1)=1,IF(AND(YEAR(JanNed1+22)=KoledarskoLeto,MONTH(JanNed1+22)=1),JanNed1+22,\"\"),IF(AND(YEAR(JanNed1+29)=KoledarskoLeto,MONTH(JanNed1+29)=1),JanNed1+29,\"\"))","v":"2019-01-28"},{"$f":"IF(DAY(JanNed1)=1,IF(AND(YEAR(JanNed1+23)=KoledarskoLeto,MONTH(JanNed1+23)=1),JanNed1+23,\"\"),IF(AND(YEAR(JanNed1+30)=KoledarskoLeto,MONTH(JanNed1+30)=1),JanNed1+30,\"\"))","v":"2019-01-29"},{"$f":"IF(DAY(JanNed1)=1,IF(AND(YEAR(JanNed1+24)=KoledarskoLeto,MONTH(JanNed1+24)=1),JanNed1+24,\"\"),IF(AND(YEAR(JanNed1+31)=KoledarskoLeto,MONTH(JanNed1+31)=1),JanNed1+31,\"\"))","v":"2019-01-30"},{"$f":"IF(DAY(JanNed1)=1,IF(AND(YEAR(JanNed1+25)=KoledarskoLeto,MONTH(JanNed1+25)=1),JanNed1+25,\"\"),IF(AND(YEAR(JanNed1+32)=KoledarskoLeto,MONTH(JanNed1+32)=1),JanNed1+32,\"\"))","v":"2019-01-31"},{"$f":"IF(DAY(JanNed1)=1,IF(AND(YEAR(JanNed1+26)=KoledarskoLeto,MONTH(JanNed1+26)=1),JanNed1+26,\"\"),IF(AND(YEAR(JanNed1+33)=KoledarskoLeto,MONTH(JanNed1+33)=1),JanNed1+33,\"\"))","v":""},{"$f":"IF(DAY(JanNed1)=1,IF(AND(YEAR(JanNed1+27)=KoledarskoLeto,MONTH(JanNed1+27)=1),JanNed1+27,\"\"),IF(AND(YEAR(JanNed1+34)=KoledarskoLeto,MONTH(JanNed1+34)=1),JanNed1+34,\"\"))","v":""},{"$f":"IF(DAY(JanNed1)=1,IF(AND(YEAR(JanNed1+28)=KoledarskoLeto,MONTH(JanNed1+28)=1),JanNed1+28,\"\"),IF(AND(YEAR(JanNed1+35)=KoledarskoLeto,MONTH(JanNed1+35)=1),JanNed1+35,\"\"))","v":""},null,{"$f":"IF(DAY(FebNed1)=1,IF(AND(YEAR(FebNed1+22)=KoledarskoLeto,MONTH(FebNed1+22)=2),FebNed1+22,\"\"),IF(AND(YEAR(FebNed1+29)=KoledarskoLeto,MONTH(FebNed1+29)=2),FebNed1+29,\"\"))","v":"2019-02-25"},{"$f":"IF(DAY(FebNed1)=1,IF(AND(YEAR(FebNed1+23)=KoledarskoLeto,MONTH(FebNed1+23)=2),FebNed1+23,\"\"),IF(AND(YEAR(FebNed1+30)=KoledarskoLeto,MONTH(FebNed1+30)=2),FebNed1+30,\"\"))","v":"2019-02-26"},{"$f":"IF(DAY(FebNed1)=1,IF(AND(YEAR(FebNed1+24)=KoledarskoLeto,MONTH(FebNed1+24)=2),FebNed1+24,\"\"),IF(AND(YEAR(FebNed1+31)=KoledarskoLeto,MONTH(FebNed1+31)=2),FebNed1+31,\"\"))","v":"2019-02-27"},{"$f":"IF(DAY(FebNed1)=1,IF(AND(YEAR(FebNed1+25)=KoledarskoLeto,MONTH(FebNed1+25)=2),FebNed1+25,\"\"),IF(AND(YEAR(FebNed1+32)=KoledarskoLeto,MONTH(FebNed1+32)=2),FebNed1+32,\"\"))","v":"2019-02-28"},{"$f":"IF(DAY(FebNed1)=1,IF(AND(YEAR(FebNed1+26)=KoledarskoLeto,MONTH(FebNed1+26)=2),FebNed1+26,\"\"),IF(AND(YEAR(FebNed1+33)=KoledarskoLeto,MONTH(FebNed1+33)=2),FebNed1+33,\"\"))","v":""},{"$f":"IF(DAY(FebNed1)=1,IF(AND(YEAR(FebNed1+27)=KoledarskoLeto,MONTH(FebNed1+27)=2),FebNed1+27,\"\"),IF(AND(YEAR(FebNed1+34)=KoledarskoLeto,MONTH(FebNed1+34)=2),FebNed1+34,\"\"))","v":""},{"$f":"IF(DAY(FebNed1)=1,IF(AND(YEAR(FebNed1+28)=KoledarskoLeto,MONTH(FebNed1+28)=2),FebNed1+28,\"\"),IF(AND(YEAR(FebNed1+35)=KoledarskoLeto,MONTH(FebNed1+35)=2),FebNed1+35,\"\"))","v":""},{"$nulls":3},"22. FEBRUAR"]
[null,null,{"$f":"IF(DAY(JanNed1)=1,IF(AND(YEAR(JanNed1+29)=KoledarskoLeto,MONTH(JanNed1+29)=1),JanNed1+29,\"\"),IF(AND(YEAR(JanNed1+36)=KoledarskoLeto,MONTH(JanNed1+36)=1),JanNed1+36,\"\"))","v":""},{"$f":"IF(DAY(JanNed1)=1,IF(AND(YEAR(JanNed1+30)=KoledarskoLeto,MONTH(JanNed1+30)=1),JanNed1+30,\"\"),IF(AND(YEAR(JanNed1+37)=KoledarskoLeto,MONTH(JanNed1+37)=1),JanNed1+37,\"\"))","v":""},{"$f":"IF(DAY(JanNed1)=1,IF(AND(YEAR(JanNed1+31)=KoledarskoLeto,MONTH(JanNed1+31)=1),JanNed1+31,\"\"),IF(AND(YEAR(JanNed1+38)=KoledarskoLeto,MONTH(JanNed1+38)=1),JanNed1+38,\"\"))","v":""},{"$f":"IF(DAY(JanNed1)=1,IF(AND(YEAR(JanNed1+32)=KoledarskoLeto,MONTH(JanNed1+32)=1),JanNed1+32,\"\"),IF(AND(YEAR(JanNed1+39)=KoledarskoLeto,MONTH(JanNed1+39)=1),JanNed1+39,\"\"))","v":""},{"$f":"IF(DAY(JanNed1)=1,IF(AND(YEAR(JanNed1+33)=KoledarskoLeto,MONTH(JanNed1+33)=1),JanNed1+33,\"\"),IF(AND(YEAR(JanNed1+40)=KoledarskoLeto,MONTH(JanNed1+40)=1),JanNed1+40,\"\"))","v":""},{"$f":"IF(DAY(JanNed1)=1,IF(AND(YEAR(JanNed1+34)=KoledarskoLeto,MONTH(JanNed1+34)=1),JanNed1+34,\"\"),IF(AND(YEAR(JanNed1+41)=KoledarskoLeto,MONTH(JanNed1+41)=1),JanNed1+41,\"\"))","v":""},{"$f":"IF(DAY(JanNed1)=1,IF(AND(YEAR(JanNed1+35)=KoledarskoLeto,MONTH(JanNed1+35)=1),JanNed1+35,\"\"),IF(AND(YEAR(JanNed1+42)=KoledarskoLeto,MONTH(JanNed1+42)=1),JanNed1+42,\"\"))","v":""},null,{"$f":"IF(DAY(FebNed1)=1,IF(AND(YEAR(FebNed1+29)=KoledarskoLeto,MONTH(FebNed1+29)=2),FebNed1+29,\"\"),IF(AND(YEAR(FebNed1+36)=KoledarskoLeto,MONTH(FebNed1+36)=2),FebNed1+36,\"\"))","v":""},{"$f":"IF(DAY(FebNed1)=1,IF(AND(YEAR(FebNed1+30)=KoledarskoLeto,MONTH(FebNed1+30)=2),FebNed1+30,\"\"),IF(AND(YEAR(FebNed1+37)=KoledarskoLeto,MONTH(FebNed1+37)=2),FebNed1+37,\"\"))","v":""},{"$f":"IF(DAY(FebNed1)=1,IF(AND(YEAR(FebNed1+31)=KoledarskoLeto,MONTH(FebNed1+31)=2),FebNed1+31,\"\"),IF(AND(YEAR(FebNed1+38)=KoledarskoLeto,MONTH(FebNed1+38)=2),FebNed1+38,\"\"))","v":""},{"$f":"IF(DAY(FebNed1)=1,IF(AND(YEAR(FebNed1+32)=KoledarskoLeto,MONTH(FebNed1+32)=2),FebNed1+32,\"\"),IF(AND(YEAR(FebNed1+39)=KoledarskoLeto,MONTH(FebNed1+39)=2),FebNed1+39,\"\"))","v":""},{"$f":"IF(DAY(FebNed1)=1,IF(AND(YEAR(FebNed1+33)=KoledarskoLeto,MONTH(FebNed1+33)=2),FebNed1+33,\"\"),IF(AND(YEAR(FebNed1+40)=KoledarskoLeto,MONTH(FebNed1+40)=2),FebNed1+40,\"\"))","v":""},{"$f":"IF(DAY(FebNed1)=1,IF(AND(YEAR(FebNed1+34)=KoledarskoLeto,MONTH(FebNed1+34)=2),FebNed1+34,\"\"),IF(AND(YEAR(FebNed1+41)=KoledarskoLeto,MONTH(FebNed1+41)=2),FebNed1+41,\"\"))","v":""},{"$f":"IF(DAY(FebNed1)=1,IF(AND(YEAR(FebNed1+35)=KoledarskoLeto,MONTH(FebNed1+35)=2),FebNed1+35,\"\"),IF(AND(YEAR(FebNed1+42)=KoledarskoLeto,MONTH(FebNed1+42)=2),FebNed1+42,\"\"))","v":""},{"$nulls":3},"DAN ODPRTIH VRAT"]
[]
[null,null,"MAREC",{"$nulls":7},"APRIL"]
[null,null,"P","T","S","Č","P","S","N",null,"P","T","S","Č","P","S","N"]
[null,null,{"$f":"IF(DAY(MarNed1)=1,\"\",IF(AND(YEAR(MarNed1+1)=KoledarskoLeto,MONTH(MarNed1+1)=3),MarNed1+1,\"\"))","v":""},{"$f":"IF(DAY(MarNed1)=1,\"\",IF(AND(YEAR(MarNed1+2)=KoledarskoLeto,MONTH(MarNed1+2)=3),MarNed1+2,\"\"))","v":""},{"$f":"IF(DAY(MarNed1)=1,\"\",IF(AND(YEAR(MarNed1+3)=KoledarskoLeto,MONTH(MarNed1+3)=3),MarNed1+3,\"\"))","v":""},{"$f":"IF(DAY(MarNed1)=1,\"\",IF(AND(YEAR(MarNed1+4)=KoledarskoLeto,MONTH(MarNed1+4)=3),MarNed1+4,\"\"))","v":""},{"$f":"IF(DAY(MarNed1)=1,\"\",IF(AND(YEAR(MarNed1+5)=KoledarskoLeto,MONTH(MarNed1+5)=3),MarNed1+5,\"\"))","v":"2019-03-01"},{"$f":"IF(DAY(MarNed1)=1,\"\",IF(AND(YEAR(MarNed1+6)=KoledarskoLeto,MONTH(MarNed1+6)=3),MarNed1+6,\"\"))","v":"2019-03-02"},{"$f":"IF(DAY(MarNed1)=1,IF(AND(YEAR(MarNed1)=KoledarskoLeto,MONTH(MarNed1)=3),MarNed1,\"\"),IF(AND(YEAR(MarNed1+7)=KoledarskoLeto,MONTH(MarNed1+7)=3),MarNed1+7,\"\"))","v":"2019-03-03"},null,{"$f":"IF(DAY(AprNed1)=1,\"\",IF(AND(YEAR(AprNed1+1)=KoledarskoLeto,MONTH(AprNed1+1)=4),AprNed1+1,\"\"))","v":"2019-04-01"},{"$f":"IF(DAY(AprNed1)=1,\"\",IF(AND(YEAR(AprNed1+2)=KoledarskoLeto,MONTH(AprNed1+2)=4),AprNed1+2,\"\"))","v":"2019-04-02"},{"$f":"IF(DAY(AprNed1)=1,\"\",IF(AND(YEAR(AprNed1+3)=KoledarskoLeto,MONTH(AprNed1+3)=4),AprNed1+3,\"\"))","v":"2019-04-03"},{"$f":"IF(DAY(AprNed1)=1,\"\",IF(AND(YEAR(AprNed1+4)=KoledarskoLeto,MONTH(AprNed1+4)=4),AprNed1+4,\"\"))","v":"2019-04-04"},{"$f":"IF(DAY(AprNed1)=1,\"\",IF(AND(YEAR(AprNed1+5)=KoledarskoLeto,MONTH(AprNed1+5)=4),AprNed1+5,\"\"))","v":"2019-04-05"},{"$f":"IF(DAY(AprNed1)=1,\"\",IF(AND(YEAR(AprNed1+6)=KoledarskoLeto,MONTH(AprNed1+6)=4),AprNed1+6,\"\"))","v":"2019-04-06"},{"$f":"IF(DAY(AprNed1)=1,IF(AND(YEAR(AprNed1)=KoledarskoLeto,MONTH(AprNed1)=4),AprNed1,\"\"),IF(AND(YEAR(AprNed1+7)=KoledarskoLeto,MONTH(AprNed1+7)=4),AprNed1+7,\"\"))","v":"2019-04-07"}]
[null,null,{"$f":"IF(DAY(MarNed1)=1,IF(AND(YEAR(MarNed1+1)=KoledarskoLeto,MONTH(MarNed1+1)=3),MarNed1+1,\"\"),IF(AND(YEAR(MarNed1+8)=KoledarskoLeto,MONTH(MarNed1+8)=3),MarNed1+8,\"\"))","v":"2019-03-04"},{"$f":"IF(DAY(MarNed1)=1,IF(AND(YEAR(MarNed1+2)=KoledarskoLeto,MONTH(MarNed1+2)=3),MarNed1+2,\"\"),IF(AND(YEAR(MarNed1+9)=KoledarskoLeto,MONTH(MarNed1+9)=3),MarNed1+9,\"\"))","v":"2019-03-05"},{"$f":"IF(DAY(MarNed1)=1,IF(AND(YEAR(MarNed1+3)=KoledarskoLeto,MONTH(MarNed1+3)=3),MarNed1+3,\"\"),IF(AND(YEAR(MarNed1+10)=KoledarskoLeto,MONTH(MarNed1+10)=3),MarNed1+10,\"\"))","v":"2019-03-06"},{"$f":"IF(DAY(MarNed1)=1,IF(AND(YEAR(MarNed1+4)=KoledarskoLeto,MONTH(MarNed1+4)=3),MarNed1+4,\"\"),IF(AND(YEAR(MarNed1+11)=KoledarskoLeto,MONTH(MarNed1+11)=3),MarNed1+11,\"\"))","v":"2019-03-07"},{"$f":"IF(DAY(MarNed1)=1,IF(AND(YEAR(MarNed1+5)=KoledarskoLeto,MONTH(MarNed1+5)=3),MarNed1+5,\"\"),IF(AND(YEAR(MarNed1+12)=KoledarskoLeto,MONTH(MarNed1+12)=3),MarNed1+12,\"\"))","v":"2019-03-08"},{"$f":"IF(DAY(MarNed1)=1,IF(AND(YEAR(MarNed1+6)=KoledarskoLeto,MONTH(MarNed1+6)=3),MarNed1+6,\"\"),IF(AND(YEAR(MarNed1+13)=KoledarskoLeto,MONTH(MarNed1+13)=3),MarNed1+13,\"\"))","v":"2019-03-09"},{"$f":"IF(DAY(MarNed1)=1,IF(AND(YEAR(MarNed1+7)=KoledarskoLeto,MONTH(MarNed1+7)=3),MarNed1+7,\"\"),IF(AND(YEAR(MarNed1+14)=KoledarskoLeto,MONTH(MarNed1+14)=3),MarNed1+14,\"\"))","v":"2019-03-10"},null,{"$f":"IF(DAY(AprNed1)=1,IF(AND(YEAR(AprNed1+1)=KoledarskoLeto,MONTH(AprNed1+1)=4),AprNed1+1,\"\"),IF(AND(YEAR(AprNed1+8)=KoledarskoLeto,MONTH(AprNed1+8)=4),AprNed1+8,\"\"))","v":"2019-04-08"},{"$f":"IF(DAY(AprNed1)=1,IF(AND(YEAR(AprNed1+2)=KoledarskoLeto,MONTH(AprNed1+2)=4),AprNed1+2,\"\"),IF(AND(YEAR(AprNed1+9)=KoledarskoLeto,MONTH(AprNed1+9)=4),AprNed1+9,\"\"))","v":"2019-04-09"},{"$f":"IF(DAY(AprNed1)=1,IF(AND(YEAR(AprNed1+3)=KoledarskoLeto,MONTH(AprNed1+3)=4),AprNed1+3,\"\"),IF(AND(YEAR(AprNed1+10)=KoledarskoLeto,MONTH(AprNed1+10)=4),AprNed1+10,\"\"))","v":"2019-04-10"},{"$f":"IF(DAY(AprNed1)=1,IF(AND(YEAR(AprNed1+4)=KoledarskoLeto,MONTH(AprNed1+4)=4),AprNed1+4,\"\"),IF(AND(YEAR(AprNed1+11)=KoledarskoLeto,MONTH(AprNed1+11)=4),AprNed1+11,\"\"))","v":"2019-04-11"},{"$f":"IF(DAY(AprNed1)=1,IF(AND(YEAR(AprNed1+5)=KoledarskoLeto,MONTH(AprNed1+5)=4),AprNed1+5,\"\"),IF(AND(YEAR(AprNed1+12)=KoledarskoLeto,MONTH(AprNed1+12)=4),AprNed1+12,\"\"))","v":"2019-04-12"},{"$f":"IF(DAY(AprNed1)=1,IF(AND(YEAR(AprNed1+6)=KoledarskoLeto,MONTH(AprNed1+6)=4),AprNed1+6,\"\"),IF(AND(YEAR(AprNed1+13)=KoledarskoLeto,MONTH(AprNed1+13)=4),AprNed1+13,\"\"))","v":"2019-04-13"},{"$f":"IF(DAY(AprNed1)=1,IF(AND(YEAR(AprNed1+7)=KoledarskoLeto,MONTH(AprNed1+7)=4),AprNed1+7,\"\"),IF(AND(YEAR(AprNed1+14)=KoledarskoLeto,MONTH(AprNed1+14)=4),AprNed1+14,\"\"))","v":"2019-04-14"}]
[null,null,{"$f":"IF(DAY(MarNed1)=1,IF(AND(YEAR(MarNed1+8)=KoledarskoLeto,MONTH(MarNed1+8)=3),MarNed1+8,\"\"),IF(AND(YEAR(MarNed1+15)=KoledarskoLeto,MONTH(MarNed1+15)=3),MarNed1+15,\"\"))","v":"2019-03-11"},{"$f":"IF(DAY(MarNed1)=1,IF(AND(YEAR(MarNed1+9)=KoledarskoLeto,MONTH(MarNed1+9)=3),MarNed1+9,\"\"),IF(AND(YEAR(MarNed1+16)=KoledarskoLeto,MONTH(MarNed1+16)=3),MarNed1+16,\"\"))","v":"2019-03-12"},{"$f":"IF(DAY(MarNed1)=1,IF(AND(YEAR(MarNed1+10)=KoledarskoLeto,MONTH(MarNed1+10)=3),MarNed1+10,\"\"),IF(AND(YEAR(MarNed1+17)=KoledarskoLeto,MONTH(MarNed1+17)=3),MarNed1+17,\"\"))","v":"2019-03-13"},{"$f":"IF(DAY(MarNed1)=1,IF(AND(YEAR(MarNed1+11)=KoledarskoLeto,MONTH(MarNed1+11)=3),MarNed1+11,\"\"),IF(AND(YEAR(MarNed1+18)=KoledarskoLeto,MONTH(MarNed1+18)=3),MarNed1+18,\"\"))","v":"2019-03-14"},{"$f":"IF(DAY(MarNed1)=1,IF(AND(YEAR(MarNed1+12)=KoledarskoLeto,MONTH(MarNed1+12)=3),MarNed1+12,\"\"),IF(AND(YEAR(MarNed1+19)=KoledarskoLeto,MONTH(MarNed1+19)=3),MarNed1+19,\"\"))","v":"2019-03-15"},{"$f":"IF(DAY(MarNed1)=1,IF(AND(YEAR(MarNed1+13)=KoledarskoLeto,MONTH(MarNed1+13)=3),MarNed1+13,\"\"),IF(AND(YEAR(MarNed1+20)=KoledarskoLeto,MONTH(MarNed1+20)=3),MarNed1+20,\"\"))","v":"2019-03-16"},{"$f":"IF(DAY(MarNed1)=1,IF(AND(YEAR(MarNed1+14)=KoledarskoLeto,MONTH(MarNed1+14)=3),MarNed1+14,\"\"),IF(AND(YEAR(MarNed1+21)=KoledarskoLeto,MONTH(MarNed1+21)=3),MarNed1+21,\"\"))","v":"2019-03-17"},null,{"$f":"IF(DAY(AprNed1)=1,IF(AND(YEAR(AprNed1+8)=KoledarskoLeto,MONTH(AprNed1+8)=4),AprNed1+8,\"\"),IF(AND(YEAR(AprNed1+15)=KoledarskoLeto,MONTH(AprNed1+15)=4),AprNed1+15,\"\"))","v":"2019-04-15"},{"$f":"IF(DAY(AprNed1)=1,IF(AND(YEAR(AprNed1+9)=KoledarskoLeto,MONTH(AprNed1+9)=4),AprNed1+9,\"\"),IF(AND(YEAR(AprNed1+16)=KoledarskoLeto,MONTH(AprNed1+16)=4),AprNed1+16,\"\"))","v":"2019-04-16"},{"$f":"IF(DAY(AprNed1)=1,IF(AND(YEAR(AprNed1+10)=KoledarskoLeto,MONTH(AprNed1+10)=4),AprNed1+10,\"\"),IF(AND(YEAR(AprNed1+17)=KoledarskoLeto,MONTH(AprNed1+17)=4),AprNed1+17,\"\"))","v":"2019-04-17"},{"$f":"IF(DAY(AprNed1)=1,IF(AND(YEAR(AprNed1+11)=KoledarskoLeto,MONTH(AprNed1+11)=4),AprNed1+11,\"\"),IF(AND(YEAR(AprNed1+18)=KoledarskoLeto,MONTH(AprNed1+18)=4),AprNed1+18,\"\"))","v":"2019-04-18"},{"$f":"IF(DAY(AprNed1)=1,IF(AND(YEAR(AprNed1+12)=KoledarskoLeto,MONTH(AprNed1+12)=4),AprNed1+12,\"\"),IF(AND(YEAR(AprNed1+19)=KoledarskoLeto,MONTH(AprNed1+19)=4),AprNed1+19,\"\"))","v":"2019-04-19"},{"$f":"IF(DAY(AprNed1)=1,IF(AND(YEAR(AprNed1+13)=KoledarskoLeto,MONTH(AprNed1+13)=4),AprNed1+13,\"\"),IF(AND(YEAR(AprNed1+20)=KoledarskoLeto,MONTH(AprNed1+20)=4),AprNed1+20,\"\"))","v":"2019-04-20"},{"$f":"IF(DAY(AprNed1)=1,IF(AND(YEAR(AprNed1+14)=KoledarskoLeto,MONTH(AprNed1+14)=4),AprNed1+14,\"\"),IF(AND(YEAR(AprNed1+21)=KoledarskoLeto,MONTH(AprNed1+21)=4),AprNed1+21,\"\"))","v":"2019-04-21"}]
[null,null,{"$f":"IF(DAY(MarNed1)=1,IF(AND(YEAR(MarNed1+15)=KoledarskoLeto,MONTH(MarNed1+15)=3),MarNed1+15,\"\"),IF(AND(YEAR(MarNed1+22)=KoledarskoLeto,MONTH(MarNed1+22)=3),MarNed1+22,\"\"))","v":"2019-03-18"},{"$f":"IF(DAY(MarNed1)=1,IF(AND(YEAR(MarNed1+16)=KoledarskoLeto,MONTH(MarNed1+16)=3),MarNed1+16,\"\"),IF(AND(YEAR(MarNed1+23)=KoledarskoLeto,MONTH(MarNed1+23)=3),MarNed1+23,\"\"))","v":"2019-03-19"},{"$f":"IF(DAY(MarNed1)=1,IF(AND(YEAR(MarNed1+17)=KoledarskoLeto,MONTH(MarNed1+17)=3),MarNed1+17,\"\"),IF(AND(YEAR(MarNed1+24)=KoledarskoLeto,MONTH(MarNed1+24)=3),MarNed1+24,\"\"))","v":"2019-03-20"},{"$f":"IF(DAY(MarNed1)=1,IF(AND(YEAR(MarNed1+18)=KoledarskoLeto,MONTH(MarNed1+18)=3),MarNed1+18,\"\"),IF(AND(YEAR(MarNed1+25)=KoledarskoLeto,MONTH(MarNed1+25)=3),MarNed1+25,\"\"))","v":"2019-03-21"},{"$f":"IF(DAY(MarNed1)=1,IF(AND(YEAR(MarNed1+19)=KoledarskoLeto,MONTH(MarNed1+19)=3),MarNed1+19,\"\"),IF(AND(YEAR(MarNed1+26)=KoledarskoLeto,MONTH(MarNed1+26)=3),MarNed1+26,\"\"))","v":"2019-03-22"},{"$f":"IF(DAY(MarNed1)=1,IF(AND(YEAR(MarNed1+20)=KoledarskoLeto,MONTH(MarNed1+20)=3),MarNed1+20,\"\"),IF(AND(YEAR(MarNed1+27)=KoledarskoLeto,MONTH(MarNed1+27)=3),MarNed1+27,\"\"))","v":"2019-03-23"},{"$f":"IF(DAY(MarNed1)=1,IF(AND(YEAR(MarNed1+21)=KoledarskoLeto,MONTH(MarNed1+21)=3),MarNed1+21,\"\"),IF(AND(YEAR(MarNed1+28)=KoledarskoLeto,MONTH(MarNed1+28)=3),MarNed1+28,\"\"))","v":"2019-03-24"},null,{"$f":"IF(DAY(AprNed1)=1,IF(AND(YEAR(AprNed1+15)=KoledarskoLeto,MONTH(AprNed1+15)=4),AprNed1+15,\"\"),IF(AND(YEAR(AprNed1+22)=KoledarskoLeto,MONTH(AprNed1+22)=4),AprNed1+22,\"\"))","v":"2019-04-22"},{"$f":"IF(DAY(AprNed1)=1,IF(AND(YEAR(AprNed1+16)=KoledarskoLeto,MONTH(AprNed1+16)=4),AprNed1+16,\"\"),IF(AND(YEAR(AprNed1+23)=KoledarskoLeto,MONTH(AprNed1+23)=4),AprNed1+23,\"\"))","v":"2019-04-23"},{"$f":"IF(DAY(AprNed1)=1,IF(AND(YEAR(AprNed1+17)=KoledarskoLeto,MONTH(AprNed1+17)=4),AprNed1+17,\"\"),IF(AND(YEAR(AprNed1+24)=KoledarskoLeto,MONTH(AprNed1+24)=4),AprNed1+24,\"\"))","v":"2019-04-24"},{"$f":"IF(DAY(AprNed1)=1,IF(AND(YEAR(AprNed1+18)=KoledarskoLeto,MONTH(AprNed1+18)=4),AprNed1+18,\"\"),IF(AND(YEAR(AprNed1+25)=KoledarskoLeto,MONTH(AprNed1+25)=4),AprNed1+25,\"\"))","v":"2019-04-25"},{"$f":"IF(DAY(AprNed1)=1,IF(AND(YEAR(AprNed1+19)=KoledarskoLeto,MONTH(AprNed1+19)=4),AprNed1+19,\"\"),IF(AND(YEAR(AprNed1+26)=KoledarskoLeto,MONTH(AprNed1+26)=4),AprNed1+26,\"\"))","v":"2019-04-26"},{"$f":"IF(DAY(AprNed1)=1,IF(AND(YEAR(AprNed1+20)=KoledarskoLeto,MONTH(AprNed1+20)=4),AprNed1+20,\"\"),IF(AND(YEAR(AprNed1+27)=KoledarskoLeto,MONTH(AprNed1+27)=4),AprNed1+27,\"\"))","v":"2019-04-27"},{"$f":"IF(DAY(AprNed1)=1,IF(AND(YEAR(AprNed1+21)=KoledarskoLeto,MONTH(AprNed1+21)=4),AprNed1+21,\"\"),IF(AND(YEAR(AprNed1+28)=KoledarskoLeto,MONTH(AprNed1+28)=4),AprNed1+28,\"\"))","v":"2019-04-28"}]
[null,null,{"$f":"IF(DAY(MarNed1)=1,IF(AND(YEAR(MarNed1+22)=KoledarskoLeto,MONTH(MarNed1+22)=3),MarNed1+22,\"\"),IF(AND(YEAR(MarNed1+29)=KoledarskoLeto,MONTH(MarNed1+29)=3),MarNed1+29,\"\"))","v":"2019-03-25"},{"$f":"IF(DAY(MarNed1)=1,IF(AND(YEAR(MarNed1+23)=KoledarskoLeto,MONTH(MarNed1+23)=3),MarNed1+23,\"\"),IF(AND(YEAR(MarNed1+30)=KoledarskoLeto,MONTH(MarNed1+30)=3),MarNed1+30,\"\"))","v":"2019-03-26"},{"$f":"IF(DAY(MarNed1)=1,IF(AND(YEAR(MarNed1+24)=KoledarskoLeto,MONTH(MarNed1+24)=3),MarNed1+24,\"\"),IF(AND(YEAR(MarNed1+31)=KoledarskoLeto,MONTH(MarNed1+31)=3),MarNed1+31,\"\"))","v":"2019-03-27"},{"$f":"IF(DAY(MarNed1)=1,IF(AND(YEAR(MarNed1+25)=KoledarskoLeto,MONTH(MarNed1+25)=3),MarNed1+25,\"\"),IF(AND(YEAR(MarNed1+32)=KoledarskoLeto,MONTH(MarNed1+32)=3),MarNed1+32,\"\"))","v":"2019-03-28"},{"$f":"IF(DAY(MarNed1)=1,IF(AND(YEAR(MarNed1+26)=KoledarskoLeto,MONTH(MarNed1+26)=3),MarNed1+26,\"\"),IF(AND(YEAR(MarNed1+33)=KoledarskoLeto,MONTH(MarNed1+33)=3),MarNed1+33,\"\"))","v":"2019-03-29"},{"$f":"IF(DAY(MarNed1)=1,IF(AND(YEAR(MarNed1+27)=KoledarskoLeto,MONTH(MarNed1+27)=3),MarNed1+27,\"\"),IF(AND(YEAR(MarNed1+34)=KoledarskoLeto,MONTH(MarNed1+34)=3),MarNed1+34,\"\"))","v":"2019-03-30"},{"$f":"IF(DAY(MarNed1)=1,IF(AND(YEAR(MarNed1+28)=KoledarskoLeto,MONTH(MarNed1+28)=3),MarNed1+28,\"\"),IF(AND(YEAR(MarNed1+35)=KoledarskoLeto,MONTH(MarNed1+35)=3),MarNed1+35,\"\"))","v":"2019-03-31"},null,{"$f":"IF(DAY(AprNed1)=1,IF(AND(YEAR(AprNed1+22)=KoledarskoLeto,MONTH(AprNed1+22)=4),AprNed1+22,\"\"),IF(AND(YEAR(AprNed1+29)=KoledarskoLeto,MONTH(AprNed1+29)=4),AprNed1+29,\"\"))","v":"2019-04-29"},{"$f":"IF(DAY(AprNed1)=1,IF(AND(YEAR(AprNed1+23)=KoledarskoLeto,MONTH(AprNed1+23)=4),AprNed1+23,\"\"),IF(AND(YEAR(AprNed1+30)=KoledarskoLeto,MONTH(AprNed1+30)=4),AprNed1+30,\"\"))","v":"2019-04-30"},{"$f":"IF(DAY(AprNed1)=1,IF(AND(YEAR(AprNed1+24)=KoledarskoLeto,MONTH(AprNed1+24)=4),AprNed1+24,\"\"),IF(AND(YEAR(AprNed1+31)=KoledarskoLeto,MONTH(AprNed1+31)=4),AprNed1+31,\"\"))","v":""},{"$f":"IF(DAY(AprNed1)=1,IF(AND(YEAR(AprNed1+25)=KoledarskoLeto,MONTH(AprNed1+25)=4),AprNed1+25,\"\"),IF(AND(YEAR(AprNed1+32)=KoledarskoLeto,MONTH(AprNed1+32)=4),AprNed1+32,\"\"))","v":""},{"$f":"IF(DAY(AprNed1)=1,IF(AND(YEAR(AprNed1+26)=KoledarskoLeto,MONTH(AprNed1+26)=4),AprNed1+26,\"\"),IF(AND(YEAR(AprNed1+33)=KoledarskoLeto,MONTH(AprNed1+33)=4),AprNed1+33,\"\"))","v":""},{"$f":"IF(DAY(AprNed1)=1,IF(AND(YEAR(AprNed1+27)=KoledarskoLeto,MONTH(AprNed1+27)=4),AprNed1+27,\"\"),IF(AND(YEAR(AprNed1+34)=KoledarskoLeto,MONTH(AprNed1+34)=4),AprNed1+34,\"\"))","v":""},{"$f":"IF(DAY(AprNed1)=1,IF(AND(YEAR(AprNed1+28)=KoledarskoLeto,MONTH(AprNed1+28)=4),AprNed1+28,\"\"),IF(AND(YEAR(AprNed1+35)=KoledarskoLeto,MONTH(AprNed1+35)=4),AprNed1+35,\"\"))","v":""}]
[null,null,{"$f":"IF(DAY(MarNed1)=1,IF(AND(YEAR(MarNed1+29)=KoledarskoLeto,MONTH(MarNed1+29)=3),MarNed1+29,\"\"),IF(AND(YEAR(MarNed1+36)=KoledarskoLeto,MONTH(MarNed1+36)=3),MarNed1+36,\"\"))","v":""},{"$f":"IF(DAY(MarNed1)=1,IF(AND(YEAR(MarNed1+30)=KoledarskoLeto,MONTH(MarNed1+30)=3),MarNed1+30,\"\"),IF(AND(YEAR(MarNed1+37)=KoledarskoLeto,MONTH(MarNed1+37)=3),MarNed1+37,\"\"))","v":""},{"$f":"IF(DAY(MarNed1)=1,IF(AND(YEAR(MarNed1+31)=KoledarskoLeto,MONTH(MarNed1+31)=3),MarNed1+31,\"\"),IF(AND(YEAR(MarNed1+38)=KoledarskoLeto,MONTH(MarNed1+38)=3),MarNed1+38,\"\"))","v":""},{"$f":"IF(DAY(MarNed1)=1,IF(AND(YEAR(MarNed1+32)=KoledarskoLeto,MONTH(MarNed1+32)=3),MarNed1+32,\"\"),IF(AND(YEAR(MarNed1+39)=KoledarskoLeto,MONTH(MarNed1+39)=3),MarNed1+39,\"\"))","v":""},{"$f":"IF(DAY(MarNed1)=1,IF(AND(YEAR(MarNed1+33)=KoledarskoLeto,MONTH(MarNed1+33)=3),MarNed1+33,\"\"),IF(AND(YEAR(MarNed1+40)=KoledarskoLeto,MONTH(MarNed1+40)=3),MarNed1+40,\"\"))","v":""},{"$f":"IF(DAY(MarNed1)=1,IF(AND(YEAR(MarNed1+34)=KoledarskoLeto,MONTH(MarNed1+34)=3),MarNed1+34,\"\"),IF(AND(YEAR(MarNed1+41)=KoledarskoLeto,MONTH(MarNed1+41)=3),MarNed1+41,\"\"))","v":""},{"$f":"IF(DAY(MarNed1)=1,IF(AND(YEAR(MarNed1+35)=KoledarskoLeto,MONTH(MarNed1+35)=3),MarNed1+35,\"\"),IF(AND(YEAR(MarNed1+42)=KoledarskoLeto,MONTH(MarNed1+42)=3),MarNed1+42,\"\"))","v":""},null,{"$f":"IF(DAY(AprNed1)=1,IF(AND(YEAR(AprNed1+29)=KoledarskoLeto,MONTH(AprNed1+29)=4),AprNed1+29,\"\"),IF(AND(YEAR(AprNed1+36)=KoledarskoLeto,MONTH(AprNed1+36)=4),AprNed1+36,\"\"))","v":""},{"$f":"IF(DAY(AprNed1)=1,IF(AND(YEAR(AprNed1+30)=KoledarskoLeto,MONTH(AprNed1+30)=4),AprNed1+30,\"\"),IF(AND(YEAR(AprNed1+37)=KoledarskoLeto,MONTH(AprNed1+37)=4),AprNed1+37,\"\"))","v":""},{"$f":"IF(DAY(AprNed1)=1,IF(AND(YEAR(AprNed1+31)=KoledarskoLeto,MONTH(AprNed1+31)=4),AprNed1+31,\"\"),IF(AND(YEAR(AprNed1+38)=KoledarskoLeto,MONTH(AprNed1+38)=4),AprNed1+38,\"\"))","v":""},{"$f":"IF(DAY(AprNed1)=1,IF(AND(YEAR(AprNed1+32)=KoledarskoLeto,MONTH(AprNed1+32)=4),AprNed1+32,\"\"),IF(AND(YEAR(AprNed1+39)=KoledarskoLeto,MONTH(AprNed1+39)=4),AprNed1+39,\"\"))","v":""},{"$f":"IF(DAY(AprNed1)=1,IF(AND(YEAR(AprNed1+33)=KoledarskoLeto,MONTH(AprNed1+33)=4),AprNed1+33,\"\"),IF(AND(YEAR(AprNed1+40)=KoledarskoLeto,MONTH(AprNed1+40)=4),AprNed1+40,\"\"))","v":""},{"$f":"IF(DAY(AprNed1)=1,IF(AND(YEAR(AprNed1+34)=KoledarskoLeto,MONTH(AprNed1+34)=4),AprNed1+34,\"\"),IF(AND(YEAR(AprNed1+41)=KoledarskoLeto,MONTH(AprNed1+41)=4),AprNed1+41,\"\"))","v":""},{"$f":"IF(DAY(AprNed1)=1,IF(AND(YEAR(AprNed1+35)=KoledarskoLeto,MONTH(AprNed1+35)=4),AprNed1+35,\"\"),IF(AND(YEAR(AprNed1+42)=KoledarskoLeto,MONTH(AprNed1+42)=4),AprNed1+42,\"\"))","v":""}]
[]
[null,null,"MAJ",{"$nulls":7},"JUNIJ"]
[null,null,"P","T","S","Č","P","S","N",null,"P","T","S","Č","P","S","N"]
[null,null,{"$f":"IF(DAY(MajNed1)=1,\"\",IF(AND(YEAR(MajNed1+1)=KoledarskoLeto,MONTH(MajNed1+1)=5),MajNed1+1,\"\"))","v":""},{"$f":"IF(DAY(MajNed1)=1,\"\",IF(AND(YEAR(MajNed1+2)=KoledarskoLeto,MONTH(MajNed1+2)=5),MajNed1+2,\"\"))","v":""},{"$f":"IF(DAY(MajNed1)=1,\"\",IF(AND(YEAR(MajNed1+3)=KoledarskoLeto,MONTH(MajNed1+3)=5),MajNed1+3,\"\"))","v":"2019-05-01"},{"$f":"IF(DAY(MajNed1)=1,\"\",IF(AND(YEAR(MajNed1+4)=KoledarskoLeto,MONTH(MajNed1+4)=5),MajNed1+4,\"\"))","v":"2019-05-02"},{"$f":"IF(DAY(MajNed1)=1,\"\",IF(AND(YEAR(MajNed1+5)=KoledarskoLeto,MONTH(MajNed1+5)=5),MajNed1+5,\"\"))","v":"2019-05-03"},{"$f":"IF(DAY(MajNed1)=1,\"\",IF(AND(YEAR(MajNed1+6)=KoledarskoLeto,MONTH(MajNed1+6)=5),MajNed1+6,\"\"))","v":"2019-05-04"},{"$f":"IF(DAY(MajNed1)=1,IF(AND(YEAR(MajNed1)=KoledarskoLeto,MONTH(MajNed1)=5),MajNed1,\"\"),IF(AND(YEAR(MajNed1+7)=KoledarskoLeto,MONTH(MajNed1+7)=5),MajNed1+7,\"\"))","v":"2019-05-05"},null,{"$f":"IF(DAY(JunNed1)=1,\"\",IF(AND(YEAR(JunNed1+1)=KoledarskoLeto,MONTH(JunNed1+1)=6),JunNed1+1,\"\"))","v":""},{"$f":"IF(DAY(JunNed1)=1,\"\",IF(AND(YEAR(JunNed1+2)=KoledarskoLeto,MONTH(JunNed1+2)=6),JunNed1+2,\"\"))","v":""},{"$f":"IF(DAY(JunNed1)=1,\"\",IF(AND(YEAR(JunNed1+3)=KoledarskoLeto,MONTH(JunNed1+3)=6),JunNed1+3,\"\"))","v":""},{"$f":"IF(DAY(JunNed1)=1,\"\",IF(AND(YEAR(JunNed1+4)=KoledarskoLeto,MONTH(JunNed1+4)=6),JunNed1+4,\"\"))","v":""},{"$f":"IF(DAY(JunNed1)=1,\"\",IF(AND(YEAR(JunNed1+5)=KoledarskoLeto,MONTH(JunNed1+5)=6),JunNed1+5,\"\"))","v":""},{"$f":"IF(DAY(JunNed1)=1,\"\",IF(AND(YEAR(JunNed1+6)=KoledarskoLeto,MONTH(JunNed1+6)=6),JunNed1+6,\"\"))","v":"2019-06-01"},{"$f":"IF(DAY(JunNed1)=1,IF(AND(YEAR(JunNed1)=KoledarskoLeto,MONTH(JunNed1)=6),JunNed1,\"\"),IF(AND(YEAR(JunNed1+7)=KoledarskoLeto,MONTH(JunNed1+7)=6),JunNed1+7,\"\"))","v":"2019-06-02"}]
[null,null,{"$f":"IF(DAY(MajNed1)=1,IF(AND(YEAR(MajNed1+1)=KoledarskoLeto,MONTH(MajNed1+1)=5),MajNed1+1,\"\"),IF(AND(YEAR(MajNed1+8)=KoledarskoLeto,MONTH(MajNed1+8)=5),MajNed1+8,\"\"))","v":"2019-05-06"},{"$f":"IF(DAY(MajNed1)=1,IF(AND(YEAR(MajNed1+2)=KoledarskoLeto,MONTH(MajNed1+2)=5),MajNed1+2,\"\"),IF(AND(YEAR(MajNed1+9)=KoledarskoLeto,MONTH(MajNed1+9)=5),MajNed1+9,\"\"))","v":"2019-05-07"},{"$f":"IF(DAY(MajNed1)=1,IF(AND(YEAR(MajNed1+3)=KoledarskoLeto,MONTH(MajNed1+3)=5),MajNed1+3,\"\"),IF(AND(YEAR(MajNed1+10)=KoledarskoLeto,MONTH(MajNed1+10)=5),MajNed1+10,\"\"))","v":"2019-05-08"},{"$f":"IF(DAY(MajNed1)=1,IF(AND(YEAR(MajNed1+4)=KoledarskoLeto,MONTH(MajNed1+4)=5),MajNed1+4,\"\"),IF(AND(YEAR(MajNed1+11)=KoledarskoLeto,MONTH(MajNed1+11)=5),MajNed1+11,\"\"))","v":"2019-05-09"},{"$f":"IF(DAY(MajNed1)=1,IF(AND(YEAR(MajNed1+5)=KoledarskoLeto,MONTH(MajNed1+5)=5),MajNed1+5,\"\"),IF(AND(YEAR(MajNed1+12)=KoledarskoLeto,MONTH(MajNed1+12)=5),MajNed1+12,\"\"))","v":"2019-05-10"},{"$f":"IF(DAY(MajNed1)=1,IF(AND(YEAR(MajNed1+6)=KoledarskoLeto,MONTH(MajNed1+6)=5),MajNed1+6,\"\"),IF(AND(YEAR(MajNed1+13)=KoledarskoLeto,MONTH(MajNed1+13)=5),MajNed1+13,\"\"))","v":"2019-05-11"},{"$f":"IF(DAY(MajNed1)=1,IF(AND(YEAR(MajNed1+7)=KoledarskoLeto,MONTH(MajNed1+7)=5),MajNed1+7,\"\"),IF(AND(YEAR(MajNed1+14)=KoledarskoLeto,MONTH(MajNed1+14)=5),MajNed1+14,\"\"))","v":"2019-05-12"},null,{"$f":"IF(DAY(JunNed1)=1,IF(AND(YEAR(JunNed1+1)=KoledarskoLeto,MONTH(JunNed1+1)=6),JunNed1+1,\"\"),IF(AND(YEAR(JunNed1+8)=KoledarskoLeto,MONTH(JunNed1+8)=6),JunNed1+8,\"\"))","v":"2019-06-03"},{"$f":"IF(DAY(JunNed1)=1,IF(AND(YEAR(JunNed1+2)=KoledarskoLeto,MONTH(JunNed1+2)=6),JunNed1+2,\"\"),IF(AND(YEAR(JunNed1+9)=KoledarskoLeto,MONTH(JunNed1+9)=6),JunNed1+9,\"\"))","v":"2019-06-04"},{"$f":"IF(DAY(JunNed1)=1,IF(AND(YEAR(JunNed1+3)=KoledarskoLeto,MONTH(JunNed1+3)=6),JunNed1+3,\"\"),IF(AND(YEAR(JunNed1+10)=KoledarskoLeto,MONTH(JunNed1+10)=6),JunNed1+10,\"\"))","v":"2019-06-05"},{"$f":"IF(DAY(JunNed1)=1,IF(AND(YEAR(JunNed1+4)=KoledarskoLeto,MONTH(JunNed1+4)=6),JunNed1+4,\"\"),IF(AND(YEAR(JunNed1+11)=KoledarskoLeto,MONTH(JunNed1+11)=6),JunNed1+11,\"\"))","v":"2019-06-06"},{"$f":"IF(DAY(JunNed1)=1,IF(AND(YEAR(JunNed1+5)=KoledarskoLeto,MONTH(JunNed1+5)=6),JunNed1+5,\"\"),IF(AND(YEAR(JunNed1+12)=KoledarskoLeto,MONTH(JunNed1+12)=6),JunNed1+12,\"\"))","v":"2019-06-07"},{"$f":"IF(DAY(JunNed1)=1,IF(AND(YEAR(JunNed1+6)=KoledarskoLeto,MONTH(JunNed1+6)=6),JunNed1+6,\"\"),IF(AND(YEAR(JunNed1+13)=KoledarskoLeto,MONTH(JunNed1+13)=6),JunNed1+13,\"\"))","v":"2019-06-08"},{"$f":"IF(DAY(JunNed1)=1,IF(AND(YEAR(JunNed1+7)=KoledarskoLeto,MONTH(JunNed1+7)=6),JunNed1+7,\"\"),IF(AND(YEAR(JunNed1+14)=KoledarskoLeto,MONTH(JunNed1+14)=6),JunNed1+14,\"\"))","v":"2019-06-09"}]
[null,null,{"$f":"IF(DAY(MajNed1)=1,IF(AND(YEAR(MajNed1+8)=KoledarskoLeto,MONTH(MajNed1+8)=5),MajNed1+8,\"\"),IF(AND(YEAR(MajNed1+15)=KoledarskoLeto,MONTH(MajNed1+15)=5),MajNed1+15,\"\"))","v":"2019-05-13"},{"$f":"IF(DAY(MajNed1)=1,IF(AND(YEAR(MajNed1+9)=KoledarskoLeto,MONTH(MajNed1+9)=5),MajNed1+9,\"\"),IF(AND(YEAR(MajNed1+16)=KoledarskoLeto,MONTH(MajNed1+16)=5),MajNed1+16,\"\"))","v":"2019-05-14"},{"$f":"IF(DAY(MajNed1)=1,IF(AND(YEAR(MajNed1+10)=KoledarskoLeto,MONTH(MajNed1+10)=5),MajNed1+10,\"\"),IF(AND(YEAR(MajNed1+17)=KoledarskoLeto,MONTH(MajNed1+17)=5),MajNed1+17,\"\"))","v":"2019-05-15"},{"$f":"IF(DAY(MajNed1)=1,IF(AND(YEAR(MajNed1+11)=KoledarskoLeto,MONTH(MajNed1+11)=5),MajNed1+11,\"\"),IF(AND(YEAR(MajNed1+18)=KoledarskoLeto,MONTH(MajNed1+18)=5),MajNed1+18,\"\"))","v":"2019-05-16"},{"$f":"IF(DAY(MajNed1)=1,IF(AND(YEAR(MajNed1+12)=KoledarskoLeto,MONTH(MajNed1+12)=5),MajNed1+12,\"\"),IF(AND(YEAR(MajNed1+19)=KoledarskoLeto,MONTH(MajNed1+19)=5),MajNed1+19,\"\"))","v":"2019-05-17"},{"$f":"IF(DAY(MajNed1)=1,IF(AND(YEAR(MajNed1+13)=KoledarskoLeto,MONTH(MajNed1+13)=5),MajNed1+13,\"\"),IF(AND(YEAR(MajNed1+20)=KoledarskoLeto,MONTH(MajNed1+20)=5),MajNed1+20,\"\"))","v":"2019-05-18"},{"$f":"IF(DAY(MajNed1)=1,IF(AND(YEAR(MajNed1+14)=KoledarskoLeto,MONTH(MajNed1+14)=5),MajNed1+14,\"\"),IF(AND(YEAR(MajNed1+21)=KoledarskoLeto,MONTH(MajNed1+21)=5),MajNed1+21,\"\"))","v":"2019-05-19"},null,{"$f":"IF(DAY(JunNed1)=1,IF(AND(YEAR(JunNed1+8)=KoledarskoLeto,MONTH(JunNed1+8)=6),JunNed1+8,\"\"),IF(AND(YEAR(JunNed1+15)=KoledarskoLeto,MONTH(JunNed1+15)=6),JunNed1+15,\"\"))","v":"2019-06-10"},{"$f":"IF(DAY(JunNed1)=1,IF(AND(YEAR(JunNed1+9)=KoledarskoLeto,MONTH(JunNed1+9)=6),JunNed1+9,\"\"),IF(AND(YEAR(JunNed1+16)=KoledarskoLeto,MONTH(JunNed1+16)=6),JunNed1+16,\"\"))","v":"2019-06-11"},{"$f":"IF(DAY(JunNed1)=1,IF(AND(YEAR(JunNed1+10)=KoledarskoLeto,MONTH(JunNed1+10)=6),JunNed1+10,\"\"),IF(AND(YEAR(JunNed1+17)=KoledarskoLeto,MONTH(JunNed1+17)=6),JunNed1+17,\"\"))","v":"2019-06-12"},{"$f":"IF(DAY(JunNed1)=1,IF(AND(YEAR(JunNed1+11)=KoledarskoLeto,MONTH(JunNed1+11)=6),JunNed1+11,\"\"),IF(AND(YEAR(JunNed1+18)=KoledarskoLeto,MONTH(JunNed1+18)=6),JunNed1+18,\"\"))","v":"2019-06-13"},{"$f":"IF(DAY(JunNed1)=1,IF(AND(YEAR(JunNed1+12)=KoledarskoLeto,MONTH(JunNed1+12)=6),JunNed1+12,\"\"),IF(AND(YEAR(JunNed1+19)=KoledarskoLeto,MONTH(JunNed1+19)=6),JunNed1+19,\"\"))","v":"2019-06-14"},{"$f":"IF(DAY(JunNed1)=1,IF(AND(YEAR(JunNed1+13)=KoledarskoLeto,MONTH(JunNed1+13)=6),JunNed1+13,\"\"),IF(AND(YEAR(JunNed1+20)=KoledarskoLeto,MONTH(JunNed1+20)=6),JunNed1+20,\"\"))","v":"2019-06-15"},{"$f":"IF(DAY(JunNed1)=1,IF(AND(YEAR(JunNed1+14)=KoledarskoLeto,MONTH(JunNed1+14)=6),JunNed1+14,\"\"),IF(AND(YEAR(JunNed1+21)=KoledarskoLeto,MONTH(JunNed1+21)=6),JunNed1+21,\"\"))","v":"2019-06-16"}]
[null,null,{"$f":"IF(DAY(MajNed1)=1,IF(AND(YEAR(MajNed1+15)=KoledarskoLeto,MONTH(MajNed1+15)=5),MajNed1+15,\"\"),IF(AND(YEAR(MajNed1+22)=KoledarskoLeto,MONTH(MajNed1+22)=5),MajNed1+22,\"\"))","v":"2019-05-20"},{"$f":"IF(DAY(MajNed1)=1,IF(AND(YEAR(MajNed1+16)=KoledarskoLeto,MONTH(MajNed1+16)=5),MajNed1+16,\"\"),IF(AND(YEAR(MajNed1+23)=KoledarskoLeto,MONTH(MajNed1+23)=5),MajNed1+23,\"\"))","v":"2019-05-21"},{"$f":"IF(DAY(MajNed1)=1,IF(AND(YEAR(MajNed1+17)=KoledarskoLeto,MONTH(MajNed1+17)=5),MajNed1+17,\"\"),IF(AND(YEAR(MajNed1+24)=KoledarskoLeto,MONTH(MajNed1+24)=5),MajNed1+24,\"\"))","v":"2019-05-22"},{"$f":"IF(DAY(MajNed1)=1,IF(AND(YEAR(MajNed1+18)=KoledarskoLeto,MONTH(MajNed1+18)=5),MajNed1+18,\"\"),IF(AND(YEAR(MajNed1+25)=KoledarskoLeto,MONTH(MajNed1+25)=5),MajNed1+25,\"\"))","v":"2019-05-23"},{"$f":"IF(DAY(MajNed1)=1,IF(AND(YEAR(MajNed1+19)=KoledarskoLeto,MONTH(MajNed1+19)=5),MajNed1+19,\"\"),IF(AND(YEAR(MajNed1+26)=KoledarskoLeto,MONTH(MajNed1+26)=5),MajNed1+26,\"\"))","v":"2019-05-24"},{"$f":"IF(DAY(MajNed1)=1,IF(AND(YEAR(MajNed1+20)=KoledarskoLeto,MONTH(MajNed1+20)=5),MajNed1+20,\"\"),IF(AND(YEAR(MajNed1+27)=KoledarskoLeto,MONTH(MajNed1+27)=5),MajNed1+27,\"\"))","v":"2019-05-25"},{"$f":"IF(DAY(MajNed1)=1,IF(AND(YEAR(MajNed1+21)=KoledarskoLeto,MONTH(MajNed1+21)=5),MajNed1+21,\"\"),IF(AND(YEAR(MajNed1+28)=KoledarskoLeto,MONTH(MajNed1+28)=5),MajNed1+28,\"\"))","v":"2019-05-26"},null,{"$f":"IF(DAY(JunNed1)=1,IF(AND(YEAR(JunNed1+15)=KoledarskoLeto,MONTH(JunNed1+15)=6),JunNed1+15,\"\"),IF(AND(YEAR(JunNed1+22)=KoledarskoLeto,MONTH(JunNed1+22)=6),JunNed1+22,\"\"))","v":"2019-06-17"},{"$f":"IF(DAY(JunNed1)=1,IF(AND(YEAR(JunNed1+16)=KoledarskoLeto,MONTH(JunNed1+16)=6),JunNed1+16,\"\"),IF(AND(YEAR(JunNed1+23)=KoledarskoLeto,MONTH(JunNed1+23)=6),JunNed1+23,\"\"))","v":"2019-06-18"},{"$f":"IF(DAY(JunNed1)=1,IF(AND(YEAR(JunNed1+17)=KoledarskoLeto,MONTH(JunNed1+17)=6),JunNed1+17,\"\"),IF(AND(YEAR(JunNed1+24)=KoledarskoLeto,MONTH(JunNed1+24)=6),JunNed1+24,\"\"))","v":"2019-06-19"},{"$f":"IF(DAY(JunNed1)=1,IF(AND(YEAR(JunNed1+18)=KoledarskoLeto,MONTH(JunNed1+18)=6),JunNed1+18,\"\"),IF(AND(YEAR(JunNed1+25)=KoledarskoLeto,MONTH(JunNed1+25)=6),JunNed1+25,\"\"))","v":"2019-06-20"},{"$f":"IF(DAY(JunNed1)=1,IF(AND(YEAR(JunNed1+19)=KoledarskoLeto,MONTH(JunNed1+19)=6),JunNed1+19,\"\"),IF(AND(YEAR(JunNed1+26)=KoledarskoLeto,MONTH(JunNed1+26)=6),JunNed1+26,\"\"))","v":"2019-06-21"},{"$f":"IF(DAY(JunNed1)=1,IF(AND(YEAR(JunNed1+20)=KoledarskoLeto,MONTH(JunNed1+20)=6),JunNed1+20,\"\"),IF(AND(YEAR(JunNed1+27)=KoledarskoLeto,MONTH(JunNed1+27)=6),JunNed1+27,\"\"))","v":"2019-06-22"},{"$f":"IF(DAY(JunNed1)=1,IF(AND(YEAR(JunNed1+21)=KoledarskoLeto,MONTH(JunNed1+21)=6),JunNed1+21,\"\"),IF(AND(YEAR(JunNed1+28)=KoledarskoLeto,MONTH(JunNed1+28)=6),JunNed1+28,\"\"))","v":"2019-06-23"}]
[null,null,{"$f":"IF(DAY(MajNed1)=1,IF(AND(YEAR(MajNed1+22)=KoledarskoLeto,MONTH(MajNed1+22)=5),MajNed1+22,\"\"),IF(AND(YEAR(MajNed1+29)=KoledarskoLeto,MONTH(MajNed1+29)=5),MajNed1+29,\"\"))","v":"2019-05-27"},{"$f":"IF(DAY(MajNed1)=1,IF(AND(YEAR(MajNed1+23)=KoledarskoLeto,MONTH(MajNed1+23)=5),MajNed1+23,\"\"),IF(AND(YEAR(MajNed1+30)=KoledarskoLeto,MONTH(MajNed1+30)=5),MajNed1+30,\"\"))","v":"2019-05-28"},{"$f":"IF(DAY(MajNed1)=1,IF(AND(YEAR(MajNed1+24)=KoledarskoLeto,MONTH(MajNed1+24)=5),MajNed1+24,\"\"),IF(AND(YEAR(MajNed1+31)=KoledarskoLeto,MONTH(MajNed1+31)=5),MajNed1+31,\"\"))","v":"2019-05-29"},{"$f":"IF(DAY(MajNed1)=1,IF(AND(YEAR(MajNed1+25)=KoledarskoLeto,MONTH(MajNed1+25)=5),MajNed1+25,\"\"),IF(AND(YEAR(MajNed1+32)=KoledarskoLeto,MONTH(MajNed1+32)=5),MajNed1+32,\"\"))","v":"2019-05-30"},{"$f":"IF(DAY(MajNed1)=1,IF(AND(YEAR(MajNed1+26)=KoledarskoLeto,MONTH(MajNed1+26)=5),MajNed1+26,\"\"),IF(AND(YEAR(MajNed1+33)=KoledarskoLeto,MONTH(MajNed1+33)=5),MajNed1+33,\"\"))","v":"2019-05-31"},{"$f":"IF(DAY(MajNed1)=1,IF(AND(YEAR(MajNed1+27)=KoledarskoLeto,MONTH(MajNed1+27)=5),MajNed1+27,\"\"),IF(AND(YEAR(MajNed1+34)=KoledarskoLeto,MONTH(MajNed1+34)=5),MajNed1+34,\"\"))","v":""},{"$f":"IF(DAY(MajNed1)=1,IF(AND(YEAR(MajNed1+28)=KoledarskoLeto,MONTH(MajNed1+28)=5),MajNed1+28,\"\"),IF(AND(YEAR(MajNed1+35)=KoledarskoLeto,MONTH(MajNed1+35)=5),MajNed1+35,\"\"))","v":""},null,{"$f":"IF(DAY(JunNed1)=1,IF(AND(YEAR(JunNed1+22)=KoledarskoLeto,MONTH(JunNed1+22)=6),JunNed1+22,\"\"),IF(AND(YEAR(JunNed1+29)=KoledarskoLeto,MONTH(JunNed1+29)=6),JunNed1+29,\"\"))","v":"2019-06-24"},{"$f":"IF(DAY(JunNed1)=1,IF(AND(YEAR(JunNed1+23)=KoledarskoLeto,MONTH(JunNed1+23)=6),JunNed1+23,\"\"),IF(AND(YEAR(JunNed1+30)=KoledarskoLeto,MONTH(JunNed1+30)=6),JunNed1+30,\"\"))","v":"2019-06-25"},{"$f":"IF(DAY(JunNed1)=1,IF(AND(YEAR(JunNed1+24)=KoledarskoLeto,MONTH(JunNed1+24)=6),JunNed1+24,\"\"),IF(AND(YEAR(JunNed1+31)=KoledarskoLeto,MONTH(JunNed1+31)=6),JunNed1+31,\"\"))","v":"2019-06-26"},{"$f":"IF(DAY(JunNed1)=1,IF(AND(YEAR(JunNed1+25)=KoledarskoLeto,MONTH(JunNed1+25)=6),JunNed1+25,\"\"),IF(AND(YEAR(JunNed1+32)=KoledarskoLeto,MONTH(JunNed1+32)=6),JunNed1+32,\"\"))","v":"2019-06-27"},{"$f":"IF(DAY(JunNed1)=1,IF(AND(YEAR(JunNed1+26)=KoledarskoLeto,MONTH(JunNed1+26)=6),JunNed1+26,\"\"),IF(AND(YEAR(JunNed1+33)=KoledarskoLeto,MONTH(JunNed1+33)=6),JunNed1+33,\"\"))","v":"2019-06-28"},{"$f":"IF(DAY(JunNed1)=1,IF(AND(YEAR(JunNed1+27)=KoledarskoLeto,MONTH(JunNed1+27)=6),JunNed1+27,\"\"),IF(AND(YEAR(JunNed1+34)=KoledarskoLeto,MONTH(JunNed1+34)=6),JunNed1+34,\"\"))","v":"2019-06-29"},{"$f":"IF(DAY(JunNed1)=1,IF(AND(YEAR(JunNed1+28)=KoledarskoLeto,MONTH(JunNed1+28)=6),JunNed1+28,\"\"),IF(AND(YEAR(JunNed1+35)=KoledarskoLeto,MONTH(JunNed1+35)=6),JunNed1+35,\"\"))","v":"2019-06-30"}]
[null,null,{"$f":"IF(DAY(MajNed1)=1,IF(AND(YEAR(MajNed1+29)=KoledarskoLeto,MONTH(MajNed1+29)=5),MajNed1+29,\"\"),IF(AND(YEAR(MajNed1+36)=KoledarskoLeto,MONTH(MajNed1+36)=5),MajNed1+36,\"\"))","v":""},{"$f":"IF(DAY(MajNed1)=1,IF(AND(YEAR(MajNed1+30)=KoledarskoLeto,MONTH(MajNed1+30)=5),MajNed1+30,\"\"),IF(AND(YEAR(MajNed1+37)=KoledarskoLeto,MONTH(MajNed1+37)=5),MajNed1+37,\"\"))","v":""},{"$f":"IF(DAY(MajNed1)=1,IF(AND(YEAR(MajNed1+31)=KoledarskoLeto,MONTH(MajNed1+31)=5),MajNed1+31,\"\"),IF(AND(YEAR(MajNed1+38)=KoledarskoLeto,MONTH(MajNed1+38)=5),MajNed1+38,\"\"))","v":""},{"$f":"IF(DAY(MajNed1)=1,IF(AND(YEAR(MajNed1+32)=KoledarskoLeto,MONTH(MajNed1+32)=5),MajNed1+32,\"\"),IF(AND(YEAR(MajNed1+39)=KoledarskoLeto,MONTH(MajNed1+39)=5),MajNed1+39,\"\"))","v":""},{"$f":"IF(DAY(MajNed1)=1,IF(AND(YEAR(MajNed1+33)=KoledarskoLeto,MONTH(MajNed1+33)=5),MajNed1+33,\"\"),IF(AND(YEAR(MajNed1+40)=KoledarskoLeto,MONTH(MajNed1+40)=5),MajNed1+40,\"\"))","v":""},{"$f":"IF(DAY(MajNed1)=1,IF(AND(YEAR(MajNed1+34)=KoledarskoLeto,MONTH(MajNed1+34)=5),MajNed1+34,\"\"),IF(AND(YEAR(MajNed1+41)=KoledarskoLeto,MONTH(MajNed1+41)=5),MajNed1+41,\"\"))","v":""},{"$f":"IF(DAY(MajNed1)=1,IF(AND(YEAR(MajNed1+35)=KoledarskoLeto,MONTH(MajNed1+35)=5),MajNed1+35,\"\"),IF(AND(YEAR(MajNed1+42)=KoledarskoLeto,MONTH(MajNed1+42)=5),MajNed1+42,\"\"))","v":""},null,{"$f":"IF(DAY(JunNed1)=1,IF(AND(YEAR(JunNed1+29)=KoledarskoLeto,MONTH(JunNed1+29)=6),JunNed1+29,\"\"),IF(AND(YEAR(JunNed1+36)=KoledarskoLeto,MONTH(JunNed1+36)=6),JunNed1+36,\"\"))","v":""},{"$f":"IF(DAY(JunNed1)=1,IF(AND(YEAR(JunNed1+30)=KoledarskoLeto,MONTH(JunNed1+30)=6),JunNed1+30,\"\"),IF(AND(YEAR(JunNed1+37)=KoledarskoLeto,MONTH(JunNed1+37)=6),JunNed1+37,\"\"))","v":""},{"$f":"IF(DAY(JunNed1)=1,IF(AND(YEAR(JunNed1+31)=KoledarskoLeto,MONTH(JunNed1+31)=6),JunNed1+31,\"\"),IF(AND(YEAR(JunNed1+38)=KoledarskoLeto,MONTH(JunNed1+38)=6),JunNed1+38,\"\"))","v":""},{"$f":"IF(DAY(JunNed1)=1,IF(AND(YEAR(JunNed1+32)=KoledarskoLeto,MONTH(JunNed1+32)=6),JunNed1+32,\"\"),IF(AND(YEAR(JunNed1+39)=KoledarskoLeto,MONTH(JunNed1+39)=6),JunNed1+39,\"\"))","v":""},{"$f":"IF(DAY(JunNed1)=1,IF(AND(YEAR(JunNed1+33)=KoledarskoLeto,MONTH(JunNed1+33)=6),JunNed1+33,\"\"),IF(AND(YEAR(JunNed1+40)=KoledarskoLeto,MONTH(JunNed1+40)=6),JunNed1+40,\"\"))","v":""},{"$f":"IF(DAY(JunNed1)=1,IF(AND(YEAR(JunNed1+34)=KoledarskoLeto,MONTH(JunNed1+34)=6),JunNed1+34,\"\"),IF(AND(YEAR(JunNed1+41)=KoledarskoLeto,MONTH(JunNed1+41)=6),JunNed1+41,\"\"))","v":""},{"$f":"IF(DAY(JunNed1)=1,IF(AND(YEAR(JunNed1+35)=KoledarskoLeto,MONTH(JunNed1+35)=6),JunNed1+35,\"\"),IF(AND(YEAR(JunNed1+42)=KoledarskoLeto,MONTH(JunNed1+42)=6),JunNed1+42,\"\"))","v":""}]
[]
[null,null,"JULIJ",{"$nulls":7},"AVGUST"]
[null,null,"P","T","S","Č","P","S","N",null,"P","T","S","Č","P","S","N"]
[null,null,{"$f":"IF(DAY(JulNed1)=1,\"\",IF(AND(YEAR(JulNed1+1)=KoledarskoLeto,MONTH(JulNed1+1)=7),JulNed1+1,\"\"))","v":"2019-07-01"},{"$f":"IF(DAY(JulNed1)=1,\"\",IF(AND(YEAR(JulNed1+2)=KoledarskoLeto,MONTH(JulNed1+2)=7),JulNed1+2,\"\"))","v":"2019-07-02"},{"$f":"IF(DAY(JulNed1)=1,\"\",IF(AND(YEAR(JulNed1+3)=KoledarskoLeto,MONTH(JulNed1+3)=7),JulNed1+3,\"\"))","v":"2019-07-03"},{"$f":"IF(DAY(JulNed1)=1,\"\",IF(AND(YEAR(JulNed1+4)=KoledarskoLeto,MONTH(JulNed1+4)=7),JulNed1+4,\"\"))","v":"2019-07-04"},{"$f":"IF(DAY(JulNed1)=1,\"\",IF(AND(YEAR(JulNed1+5)=KoledarskoLeto,MONTH(JulNed1+5)=7),JulNed1+5,\"\"))","v":"2019-07-05"},{"$f":"IF(DAY(JulNed1)=1,\"\",IF(AND(YEAR(JulNed1+6)=KoledarskoLeto,MONTH(JulNed1+6)=7),JulNed1+6,\"\"))","v":"2019-07-06"},{"$f":"IF(DAY(JulNed1)=1,IF(AND(YEAR(JulNed1)=KoledarskoLeto,MONTH(JulNed1)=7),JulNed1,\"\"),IF(AND(YEAR(JulNed1+7)=KoledarskoLeto,MONTH(JulNed1+7)=7),JulNed1+7,\"\"))","v":"2019-07-07"},null,{"$f":"IF(DAY(AvgNed1)=1,\"\",IF(AND(YEAR(AvgNed1+1)=KoledarskoLeto,MONTH(AvgNed1+1)=8),AvgNed1+1,\"\"))","v":""},{"$f":"IF(DAY(AvgNed1)=1,\"\",IF(AND(YEAR(AvgNed1+2)=KoledarskoLeto,MONTH(AvgNed1+2)=8),AvgNed1+2,\"\"))","v":""},{"$f":"IF(DAY(AvgNed1)=1,\"\",IF(AND(YEAR(AvgNed1+3)=KoledarskoLeto,MONTH(AvgNed1+3)=8),AvgNed1+3,\"\"))","v":""},{"$f":"IF(DAY(AvgNed1)=1,\"\",IF(AND(YEAR(AvgNed1+4)=KoledarskoLeto,MONTH(AvgNed1+4)=8),AvgNed1+4,\"\"))","v":"2019-08-01"},{"$f":"IF(DAY(AvgNed1)=1,\"\",IF(AND(YEAR(AvgNed1+5)=KoledarskoLeto,MONTH(AvgNed1+5)=8),AvgNed1+5,\"\"))","v":"2019-08-02"},{"$f":"IF(DAY(AvgNed1)=1,\"\",IF(AND(YEAR(AvgNed1+6)=KoledarskoLeto,MONTH(AvgNed1+6)=8),AvgNed1+6,\"\"))","v":"2019-08-03"},{"$f":"IF(DAY(AvgNed1)=1,IF(AND(YEAR(AvgNed1)=KoledarskoLeto,MONTH(AvgNed1)=8),AvgNed1,\"\"),IF(AND(YEAR(AvgNed1+7)=KoledarskoLeto,MONTH(AvgNed1+7)=8),AvgNed1+7,\"\"))","v":"2019-08-04"}]
[null,null,{"$f":"IF(DAY(JulNed1)=1,IF(AND(YEAR(JulNed1+1)=KoledarskoLeto,MONTH(JulNed1+1)=7),JulNed1+1,\"\"),IF(AND(YEAR(JulNed1+8)=KoledarskoLeto,MONTH(JulNed1+8)=7),JulNed1+8,\"\"))","v":"2019-07-08"},{"$f":"IF(DAY(JulNed1)=1,IF(AND(YEAR(JulNed1+2)=KoledarskoLeto,MONTH(JulNed1+2)=7),JulNed1+2,\"\"),IF(AND(YEAR(JulNed1+9)=KoledarskoLeto,MONTH(JulNed1+9)=7),JulNed1+9,\"\"))","v":"2019-07-09"},{"$f":"IF(DAY(JulNed1)=1,IF(AND(YEAR(JulNed1+3)=KoledarskoLeto,MONTH(JulNed1+3)=7),JulNed1+3,\"\"),IF(AND(YEAR(JulNed1+10)=KoledarskoLeto,MONTH(JulNed1+10)=7),JulNed1+10,\"\"))","v":"2019-07-10"},{"$f":"IF(DAY(JulNed1)=1,IF(AND(YEAR(JulNed1+4)=KoledarskoLeto,MONTH(JulNed1+4)=7),JulNed1+4,\"\"),IF(AND(YEAR(JulNed1+11)=KoledarskoLeto,MONTH(JulNed1+11)=7),JulNed1+11,\"\"))","v":"2019-07-11"},{"$f":"IF(DAY(JulNed1)=1,IF(AND(YEAR(JulNed1+5)=KoledarskoLeto,MONTH(JulNed1+5)=7),JulNed1+5,\"\"),IF(AND(YEAR(JulNed1+12)=KoledarskoLeto,MONTH(JulNed1+12)=7),JulNed1+12,\"\"))","v":"2019-07-12"},{"$f":"IF(DAY(JulNed1)=1,IF(AND(YEAR(JulNed1+6)=KoledarskoLeto,MONTH(JulNed1+6)=7),JulNed1+6,\"\"),IF(AND(YEAR(JulNed1+13)=KoledarskoLeto,MONTH(JulNed1+13)=7),JulNed1+13,\"\"))","v":"2019-07-13"},{"$f":"IF(DAY(JulNed1)=1,IF(AND(YEAR(JulNed1+7)=KoledarskoLeto,MONTH(JulNed1+7)=7),JulNed1+7,\"\"),IF(AND(YEAR(JulNed1+14)=KoledarskoLeto,MONTH(JulNed1+14)=7),JulNed1+14,\"\"))","v":"2019-07-14"},null,{"$f":"IF(DAY(AvgNed1)=1,IF(AND(YEAR(AvgNed1+1)=KoledarskoLeto,MONTH(AvgNed1+1)=8),AvgNed1+1,\"\"),IF(AND(YEAR(AvgNed1+8)=KoledarskoLeto,MONTH(AvgNed1+8)=8),AvgNed1+8,\"\"))","v":"2019-08-05"},{"$f":"IF(DAY(AvgNed1)=1,IF(AND(YEAR(AvgNed1+2)=KoledarskoLeto,MONTH(AvgNed1+2)=8),AvgNed1+2,\"\"),IF(AND(YEAR(AvgNed1+9)=KoledarskoLeto,MONTH(AvgNed1+9)=8),AvgNed1+9,\"\"))","v":"2019-08-06"},{"$f":"IF(DAY(AvgNed1)=1,IF(AND(YEAR(AvgNed1+3)=KoledarskoLeto,MONTH(AvgNed1+3)=8),AvgNed1+3,\"\"),IF(AND(YEAR(AvgNed1+10)=KoledarskoLeto,MONTH(AvgNed1+10)=8),AvgNed1+10,\"\"))","v":"2019-08-07"},{"$f":"IF(DAY(AvgNed1)=1,IF(AND(YEAR(AvgNed1+4)=KoledarskoLeto,MONTH(AvgNed1+4)=8),AvgNed1+4,\"\"),IF(AND(YEAR(AvgNed1+11)=KoledarskoLeto,MONTH(AvgNed1+11)=8),AvgNed1+11,\"\"))","v":"2019-08-08"},{"$f":"IF(DAY(AvgNed1)=1,IF(AND(YEAR(AvgNed1+5)=KoledarskoLeto,MONTH(AvgNed1+5)=8),AvgNed1+5,\"\"),IF(AND(YEAR(AvgNed1+12)=KoledarskoLeto,MONTH(AvgNed1+12)=8),AvgNed1+12,\"\"))","v":"2019-08-09"},{"$f":"IF(DAY(AvgNed1)=1,IF(AND(YEAR(AvgNed1+6)=KoledarskoLeto,MONTH(AvgNed1+6)=8),AvgNed1+6,\"\"),IF(AND(YEAR(AvgNed1+13)=KoledarskoLeto,MONTH(AvgNed1+13)=8),AvgNed1+13,\"\"))","v":"2019-08-10"},{"$f":"IF(DAY(AvgNed1)=1,IF(AND(YEAR(AvgNed1+7)=KoledarskoLeto,MONTH(AvgNed1+7)=8),AvgNed1+7,\"\"),IF(AND(YEAR(AvgNed1+14)=KoledarskoLeto,MONTH(AvgNed1+14)=8),AvgNed1+14,\"\"))","v":"2019-08-11"}]
[null,null,{"$f":"IF(DAY(JulNed1)=1,IF(AND(YEAR(JulNed1+8)=KoledarskoLeto,MONTH(JulNed1+8)=7),JulNed1+8,\"\"),IF(AND(YEAR(JulNed1+15)=KoledarskoLeto,MONTH(JulNed1+15)=7),JulNed1+15,\"\"))","v":"2019-07-15"},{"$f":"IF(DAY(JulNed1)=1,IF(AND(YEAR(JulNed1+9)=KoledarskoLeto,MONTH(JulNed1+9)=7),JulNed1+9,\"\"),IF(AND(YEAR(JulNed1+16)=KoledarskoLeto,MONTH(JulNed1+16)=7),JulNed1+16,\"\"))","v":"2019-07-16"},{"$f":"IF(DAY(JulNed1)=1,IF(AND(YEAR(JulNed1+10)=KoledarskoLeto,MONTH(JulNed1+10)=7),JulNed1+10,\"\"),IF(AND(YEAR(JulNed1+17)=KoledarskoLeto,MONTH(JulNed1+17)=7),JulNed1+17,\"\"))","v":"2019-07-17"},{"$f":"IF(DAY(JulNed1)=1,IF(AND(YEAR(JulNed1+11)=KoledarskoLeto,MONTH(JulNed1+11)=7),JulNed1+11,\"\"),IF(AND(YEAR(JulNed1+18)=KoledarskoLeto,MONTH(JulNed1+18)=7),JulNed1+18,\"\"))","v":"2019-07-18"},{"$f":"IF(DAY(JulNed1)=1,IF(AND(YEAR(JulNed1+12)=KoledarskoLeto,MONTH(JulNed1+12)=7),JulNed1+12,\"\"),IF(AND(YEAR(JulNed1+19)=KoledarskoLeto,MONTH(JulNed1+19)=7),JulNed1+19,\"\"))","v":"2019-07-19"},{"$f":"IF(DAY(JulNed1)=1,IF(AND(YEAR(JulNed1+13)=KoledarskoLeto,MONTH(JulNed1+13)=7),JulNed1+13,\"\"),IF(AND(YEAR(JulNed1+20)=KoledarskoLeto,MONTH(JulNed1+20)=7),JulNed1+20,\"\"))","v":"2019-07-20"},{"$f":"IF(DAY(JulNed1)=1,IF(AND(YEAR(JulNed1+14)=KoledarskoLeto,MONTH(JulNed1+14)=7),JulNed1+14,\"\"),IF(AND(YEAR(JulNed1+21)=KoledarskoLeto,MONTH(JulNed1+21)=7),JulNed1+21,\"\"))","v":"2019-07-21"},null,{"$f":"IF(DAY(AvgNed1)=1,IF(AND(YEAR(AvgNed1+8)=KoledarskoLeto,MONTH(AvgNed1+8)=8),AvgNed1+8,\"\"),IF(AND(YEAR(AvgNed1+15)=KoledarskoLeto,MONTH(AvgNed1+15)=8),AvgNed1+15,\"\"))","v":"2019-08-12"},{"$f":"IF(DAY(AvgNed1)=1,IF(AND(YEAR(AvgNed1+9)=KoledarskoLeto,MONTH(AvgNed1+9)=8),AvgNed1+9,\"\"),IF(AND(YEAR(AvgNed1+16)=KoledarskoLeto,MONTH(AvgNed1+16)=8),AvgNed1+16,\"\"))","v":"2019-08-13"},{"$f":"IF(DAY(AvgNed1)=1,IF(AND(YEAR(AvgNed1+10)=KoledarskoLeto,MONTH(AvgNed1+10)=8),AvgNed1+10,\"\"),IF(AND(YEAR(AvgNed1+17)=KoledarskoLeto,MONTH(AvgNed1+17)=8),AvgNed1+17,\"\"))","v":"2019-08-14"},{"$f":"IF(DAY(AvgNed1)=1,IF(AND(YEAR(AvgNed1+11)=KoledarskoLeto,MONTH(AvgNed1+11)=8),AvgNed1+11,\"\"),IF(AND(YEAR(AvgNed1+18)=KoledarskoLeto,MONTH(AvgNed1+18)=8),AvgNed1+18,\"\"))","v":"2019-08-15"},{"$f":"IF(DAY(AvgNed1)=1,IF(AND(YEAR(AvgNed1+12)=KoledarskoLeto,MONTH(AvgNed1+12)=8),AvgNed1+12,\"\"),IF(AND(YEAR(AvgNed1+19)=KoledarskoLeto,MONTH(AvgNed1+19)=8),AvgNed1+19,\"\"))","v":"2019-08-16"},{"$f":"IF(DAY(AvgNed1)=1,IF(AND(YEAR(AvgNed1+13)=KoledarskoLeto,MONTH(AvgNed1+13)=8),AvgNed1+13,\"\"),IF(AND(YEAR(AvgNed1+20)=KoledarskoLeto,MONTH(AvgNed1+20)=8),AvgNed1+20,\"\"))","v":"2019-08-17"},{"$f":"IF(DAY(AvgNed1)=1,IF(AND(YEAR(AvgNed1+14)=KoledarskoLeto,MONTH(AvgNed1+14)=8),AvgNed1+14,\"\"),IF(AND(YEAR(AvgNed1+21)=KoledarskoLeto,MONTH(AvgNed1+21)=8),AvgNed1+21,\"\"))","v":"2019-08-18"}]
[null,null,{"$f":"IF(DAY(JulNed1)=1,IF(AND(YEAR(JulNed1+15)=KoledarskoLeto,MONTH(JulNed1+15)=7),JulNed1+15,\"\"),IF(AND(YEAR(JulNed1+22)=KoledarskoLeto,MONTH(JulNed1+22)=7),JulNed1+22,\"\"))","v":"2019-07-22"},{"$f":"IF(DAY(JulNed1)=1,IF(AND(YEAR(JulNed1+16)=KoledarskoLeto,MONTH(JulNed1+16)=7),JulNed1+16,\"\"),IF(AND(YEAR(JulNed1+23)=KoledarskoLeto,MONTH(JulNed1+23)=7),JulNed1+23,\"\"))","v":"2019-07-23"},{"$f":"IF(DAY(JulNed1)=1,IF(AND(YEAR(JulNed1+17)=KoledarskoLeto,MONTH(JulNed1+17)=7),JulNed1+17,\"\"),IF(AND(YEAR(JulNed1+24)=KoledarskoLeto,MONTH(JulNed1+24)=7),JulNed1+24,\"\"))","v":"2019-07-24"},{"$f":"IF(DAY(JulNed1)=1,IF(AND(YEAR(JulNed1+18)=KoledarskoLeto,MONTH(JulNed1+18)=7),JulNed1+18,\"\"),IF(AND(YEAR(JulNed1+25)=KoledarskoLeto,MONTH(JulNed1+25)=7),JulNed1+25,\"\"))","v":"2019-07-25"},{"$f":"IF(DAY(JulNed1)=1,IF(AND(YEAR(JulNed1+19)=KoledarskoLeto,MONTH(JulNed1+19)=7),JulNed1+19,\"\"),IF(AND(YEAR(JulNed1+26)=KoledarskoLeto,MONTH(JulNed1+26)=7),JulNed1+26,\"\"))","v":"2019-07-26"},{"$f":"IF(DAY(JulNed1)=1,IF(AND(YEAR(JulNed1+20)=KoledarskoLeto,MONTH(JulNed1+20)=7),JulNed1+20,\"\"),IF(AND(YEAR(JulNed1+27)=KoledarskoLeto,MONTH(JulNed1+27)=7),JulNed1+27,\"\"))","v":"2019-07-27"},{"$f":"IF(DAY(JulNed1)=1,IF(AND(YEAR(JulNed1+21)=KoledarskoLeto,MONTH(JulNed1+21)=7),JulNed1+21,\"\"),IF(AND(YEAR(JulNed1+28)=KoledarskoLeto,MONTH(JulNed1+28)=7),JulNed1+28,\"\"))","v":"2019-07-28"},null,{"$f":"IF(DAY(AvgNed1)=1,IF(AND(YEAR(AvgNed1+15)=KoledarskoLeto,MONTH(AvgNed1+15)=8),AvgNed1+15,\"\"),IF(AND(YEAR(AvgNed1+22)=KoledarskoLeto,MONTH(AvgNed1+22)=8),AvgNed1+22,\"\"))","v":"2019-08-19"},{"$f":"IF(DAY(AvgNed1)=1,IF(AND(YEAR(AvgNed1+16)=KoledarskoLeto,MONTH(AvgNed1+16)=8),AvgNed1+16,\"\"),IF(AND(YEAR(AvgNed1+23)=KoledarskoLeto,MONTH(AvgNed1+23)=8),AvgNed1+23,\"\"))","v":"2019-08-20"},{"$f":"IF(DAY(AvgNed1)=1,IF(AND(YEAR(AvgNed1+17)=KoledarskoLeto,MONTH(AvgNed1+17)=8),AvgNed1+17,\"\"),IF(AND(YEAR(AvgNed1+24)=KoledarskoLeto,MONTH(AvgNed1+24)=8),AvgNed1+24,\"\"))","v":"2019-08-21"},{"$f":"IF(DAY(AvgNed1)=1,IF(AND(YEAR(AvgNed1+18)=KoledarskoLeto,MONTH(AvgNed1+18)=8),AvgNed1+18,\"\"),IF(AND(YEAR(AvgNed1+25)=KoledarskoLeto,MONTH(AvgNed1+25)=8),AvgNed1+25,\"\"))","v":"2019-08-22"},{"$f":"IF(DAY(AvgNed1)=1,IF(AND(YEAR(AvgNed1+19)=KoledarskoLeto,MONTH(AvgNed1+19)=8),AvgNed1+19,\"\"),IF(AND(YEAR(AvgNed1+26)=KoledarskoLeto,MONTH(AvgNed1+26)=8),AvgNed1+26,\"\"))","v":"2019-08-23"},{"$f":"IF(DAY(AvgNed1)=1,IF(AND(YEAR(AvgNed1+20)=KoledarskoLeto,MONTH(AvgNed1+20)=8),AvgNed1+20,\"\"),IF(AND(YEAR(AvgNed1+27)=KoledarskoLeto,MONTH(AvgNed1+27)=8),AvgNed1+27,\"\"))","v":"2019-08-24"},{"$f":"IF(DAY(AvgNed1)=1,IF(AND(YEAR(AvgNed1+21)=KoledarskoLeto,MONTH(AvgNed1+21)=8),AvgNed1+21,\"\"),IF(AND(YEAR(AvgNed1+28)=KoledarskoLeto,MONTH(AvgNed1+28)=8),AvgNed1+28,\"\"))","v":"2019-08-25"}]
[null,null,{"$f":"IF(DAY(JulNed1)=1,IF(AND(YEAR(JulNed1+22)=KoledarskoLeto,MONTH(JulNed1+22)=7),JulNed1+22,\"\"),IF(AND(YEAR(JulNed1+29)=KoledarskoLeto,MONTH(JulNed1+29)=7),JulNed1+29,\"\"))","v":"2019-07-29"},{"$f":"IF(DAY(JulNed1)=1,IF(AND(YEAR(JulNed1+23)=KoledarskoLeto,MONTH(JulNed1+23)=7),JulNed1+23,\"\"),IF(AND(YEAR(JulNed1+30)=KoledarskoLeto,MONTH(JulNed1+30)=7),JulNed1+30,\"\"))","v":"2019-07-30"},{"$f":"IF(DAY(JulNed1)=1,IF(AND(YEAR(JulNed1+24)=KoledarskoLeto,MONTH(JulNed1+24)=7),JulNed1+24,\"\"),IF(AND(YEAR(JulNed1+31)=KoledarskoLeto,MONTH(JulNed1+31)=7),JulNed1+31,\"\"))","v":"2019-07-31"},{"$f":"IF(DAY(JulNed1)=1,IF(AND(YEAR(JulNed1+25)=KoledarskoLeto,MONTH(JulNed1+25)=7),JulNed1+25,\"\"),IF(AND(YEAR(JulNed1+32)=KoledarskoLeto,MONTH(JulNed1+32)=7),JulNed1+32,\"\"))","v":""},{"$f":"IF(DAY(JulNed1)=1,IF(AND(YEAR(JulNed1+26)=KoledarskoLeto,MONTH(JulNed1+26)=7),JulNed1+26,\"\"),IF(AND(YEAR(JulNed1+33)=KoledarskoLeto,MONTH(JulNed1+33)=7),JulNed1+33,\"\"))","v":""},{"$f":"IF(DAY(JulNed1)=1,IF(AND(YEAR(JulNed1+27)=KoledarskoLeto,MONTH(JulNed1+27)=7),JulNed1+27,\"\"),IF(AND(YEAR(JulNed1+34)=KoledarskoLeto,MONTH(JulNed1+34)=7),JulNed1+34,\"\"))","v":""},{"$f":"IF(DAY(JulNed1)=1,IF(AND(YEAR(JulNed1+28)=KoledarskoLeto,MONTH(JulNed1+28)=7),JulNed1+28,\"\"),IF(AND(YEAR(JulNed1+35)=KoledarskoLeto,MONTH(JulNed1+35)=7),JulNed1+35,\"\"))","v":""},null,{"$f":"IF(DAY(AvgNed1)=1,IF(AND(YEAR(AvgNed1+22)=KoledarskoLeto,MONTH(AvgNed1+22)=8),AvgNed1+22,\"\"),IF(AND(YEAR(AvgNed1+29)=KoledarskoLeto,MONTH(AvgNed1+29)=8),AvgNed1+29,\"\"))","v":"2019-08-26"},{"$f":"IF(DAY(AvgNed1)=1,IF(AND(YEAR(AvgNed1+23)=KoledarskoLeto,MONTH(AvgNed1+23)=8),AvgNed1+23,\"\"),IF(AND(YEAR(AvgNed1+30)=KoledarskoLeto,MONTH(AvgNed1+30)=8),AvgNed1+30,\"\"))","v":"2019-08-27"},{"$f":"IF(DAY(AvgNed1)=1,IF(AND(YEAR(AvgNed1+24)=KoledarskoLeto,MONTH(AvgNed1+24)=8),AvgNed1+24,\"\"),IF(AND(YEAR(AvgNed1+31)=KoledarskoLeto,MONTH(AvgNed1+31)=8),AvgNed1+31,\"\"))","v":"2019-08-28"},{"$f":"IF(DAY(AvgNed1)=1,IF(AND(YEAR(AvgNed1+25)=KoledarskoLeto,MONTH(AvgNed1+25)=8),AvgNed1+25,\"\"),IF(AND(YEAR(AvgNed1+32)=KoledarskoLeto,MONTH(AvgNed1+32)=8),AvgNed1+32,\"\"))","v":"2019-08-29"},{"$f":"IF(DAY(AvgNed1)=1,IF(AND(YEAR(AvgNed1+26)=KoledarskoLeto,MONTH(AvgNed1+26)=8),AvgNed1+26,\"\"),IF(AND(YEAR(AvgNed1+33)=KoledarskoLeto,MONTH(AvgNed1+33)=8),AvgNed1+33,\"\"))","v":"2019-08-30"},{"$f":"IF(DAY(AvgNed1)=1,IF(AND(YEAR(AvgNed1+27)=KoledarskoLeto,MONTH(AvgNed1+27)=8),AvgNed1+27,\"\"),IF(AND(YEAR(AvgNed1+34)=KoledarskoLeto,MONTH(AvgNed1+34)=8),AvgNed1+34,\"\"))","v":"2019-08-31"},{"$f":"IF(DAY(AvgNed1)=1,IF(AND(YEAR(AvgNed1+28)=KoledarskoLeto,MONTH(AvgNed1+28)=8),AvgNed1+28,\"\"),IF(AND(YEAR(AvgNed1+35)=KoledarskoLeto,MONTH(AvgNed1+35)=8),AvgNed1+35,\"\"))","v":""}]
[null,null,{"$f":"IF(DAY(JulNed1)=1,IF(AND(YEAR(JulNed1+29)=KoledarskoLeto,MONTH(JulNed1+29)=7),JulNed1+29,\"\"),IF(AND(YEAR(JulNed1+36)=KoledarskoLeto,MONTH(JulNed1+36)=7),JulNed1+36,\"\"))","v":""},{"$f":"IF(DAY(JulNed1)=1,IF(AND(YEAR(JulNed1+30)=KoledarskoLeto,MONTH(JulNed1+30)=7),JulNed1+30,\"\"),IF(AND(YEAR(JulNed1+37)=KoledarskoLeto,MONTH(JulNed1+37)=7),JulNed1+37,\"\"))","v":""},{"$f":"IF(DAY(JulNed1)=1,IF(AND(YEAR(JulNed1+31)=KoledarskoLeto,MONTH(JulNed1+31)=7),JulNed1+31,\"\"),IF(AND(YEAR(JulNed1+38)=KoledarskoLeto,MONTH(JulNed1+38)=7),JulNed1+38,\"\"))","v":""},{"$f":"IF(DAY(JulNed1)=1,IF(AND(YEAR(JulNed1+32)=KoledarskoLeto,MONTH(JulNed1+32)=7),JulNed1+32,\"\"),IF(AND(YEAR(JulNed1+39)=KoledarskoLeto,MONTH(JulNed1+39)=7),JulNed1+39,\"\"))","v":""},{"$f":"IF(DAY(JulNed1)=1,IF(AND(YEAR(JulNed1+33)=KoledarskoLeto,MONTH(JulNed1+33)=7),JulNed1+33,\"\"),IF(AND(YEAR(JulNed1+40)=KoledarskoLeto,MONTH(JulNed1+40)=7),JulNed1+40,\"\"))","v":""},{"$f":"IF(DAY(JulNed1)=1,IF(AND(YEAR(JulNed1+34)=KoledarskoLeto,MONTH(JulNed1+34)=7),JulNed1+34,\"\"),IF(AND(YEAR(JulNed1+41)=KoledarskoLeto,MONTH(JulNed1+41)=7),JulNed1+41,\"\"))","v":""},{"$f":"IF(DAY(JulNed1)=1,IF(AND(YEAR(JulNed1+35)=KoledarskoLeto,MONTH(JulNed1+35)=7),JulNed1+35,\"\"),IF(AND(YEAR(JulNed1+42)=KoledarskoLeto,MONTH(JulNed1+42)=7),JulNed1+42,\"\"))","v":""},null,{"$f":"IF(DAY(AvgNed1)=1,IF(AND(YEAR(AvgNed1+29)=KoledarskoLeto,MONTH(AvgNed1+29)=8),AvgNed1+29,\"\"),IF(AND(YEAR(AvgNed1+36)=KoledarskoLeto,MONTH(AvgNed1+36)=8),AvgNed1+36,\"\"))","v":""},{"$f":"IF(DAY(AvgNed1)=1,IF(AND(YEAR(AvgNed1+30)=KoledarskoLeto,MONTH(AvgNed1+30)=8),AvgNed1+30,\"\"),IF(AND(YEAR(AvgNed1+37)=KoledarskoLeto,MONTH(AvgNed1+37)=8),AvgNed1+37,\"\"))","v":""},{"$f":"IF(DAY(AvgNed1)=1,IF(AND(YEAR(AvgNed1+31)=KoledarskoLeto,MONTH(AvgNed1+31)=8),AvgNed1+31,\"\"),IF(AND(YEAR(AvgNed1+38)=KoledarskoLeto,MONTH(AvgNed1+38)=8),AvgNed1+38,\"\"))","v":""},{"$f":"IF(DAY(AvgNed1)=1,IF(AND(YEAR(AvgNed1+32)=KoledarskoLeto,MONTH(AvgNed1+32)=8),AvgNed1+32,\"\"),IF(AND(YEAR(AvgNed1+39)=KoledarskoLeto,MONTH(AvgNed1+39)=8),AvgNed1+39,\"\"))","v":""},{"$f":"IF(DAY(AvgNed1)=1,IF(AND(YEAR(AvgNed1+33)=KoledarskoLeto,MONTH(AvgNed1+33)=8),AvgNed1+33,\"\"),IF(AND(YEAR(AvgNed1+40)=KoledarskoLeto,MONTH(AvgNed1+40)=8),AvgNed1+40,\"\"))","v":""},{"$f":"IF(DAY(AvgNed1)=1,IF(AND(YEAR(AvgNed1+34)=KoledarskoLeto,MONTH(AvgNed1+34)=8),AvgNed1+34,\"\"),IF(AND(YEAR(AvgNed1+41)=KoledarskoLeto,MONTH(AvgNed1+41)=8),AvgNed1+41,\"\"))","v":""},{"$f":"IF(DAY(AvgNed1)=1,IF(AND(YEAR(AvgNed1+35)=KoledarskoLeto,MONTH(AvgNed1+35)=8),AvgNed1+35,\"\"),IF(AND(YEAR(AvgNed1+42)=KoledarskoLeto,MONTH(AvgNed1+42)=8),AvgNed1+42,\"\"))","v":""}]
[]
[null,null,"SEPTEMBER",{"$nulls":7},"OKTOBER"]
[null,null,"P","T","S","Č","P","S","N",null,"P","T","S","Č","P","S","N"]
[null,null,{"$f":"IF(DAY(SepNed1)=1,\"\",IF(AND(YEAR(SepNed1+1)=KoledarskoLeto,MONTH(SepNed1+1)=9),SepNed1+1,\"\"))","v":""},{"$f":"IF(DAY(SepNed1)=1,\"\",IF(AND(YEAR(SepNed1+2)=KoledarskoLeto,MONTH(SepNed1+2)=9),SepNed1+2,\"\"))","v":""},{"$f":"IF(DAY(SepNed1)=1,\"\",IF(AND(YEAR(SepNed1+3)=KoledarskoLeto,MONTH(SepNed1+3)=9),SepNed1+3,\"\"))","v":""},{"$f":"IF(DAY(SepNed1)=1,\"\",IF(AND(YEAR(SepNed1+4)=KoledarskoLeto,MONTH(SepNed1+4)=9),SepNed1+4,\"\"))","v":""},{"$f":"IF(DAY(SepNed1)=1,\"\",IF(AND(YEAR(SepNed1+5)=KoledarskoLeto,MONTH(SepNed1+5)=9),SepNed1+5,\"\"))","v":""},{"$f":"IF(DAY(SepNed1)=1,\"\",IF(AND(YEAR(SepNed1+6)=KoledarskoLeto,MONTH(SepNed1+6)=9),SepNed1+6,\"\"))","v":""},{"$f":"IF(DAY(SepNed1)=1,IF(AND(YEAR(SepNed1)=KoledarskoLeto,MONTH(SepNed1)=9),SepNed1,\"\"),IF(AND(YEAR(SepNed1+7)=KoledarskoLeto,MONTH(SepNed1+7)=9),SepNed1+7,\"\"))","v":"2019-09-01"},null,{"$f":"IF(DAY(OktNed1)=1,\"\",IF(AND(YEAR(OktNed1+1)=KoledarskoLeto,MONTH(OktNed1+1)=10),OktNed1+1,\"\"))","v":""},{"$f":"IF(DAY(OktNed1)=1,\"\",IF(AND(YEAR(OktNed1+2)=KoledarskoLeto,MONTH(OktNed1+2)=10),OktNed1+2,\"\"))","v":"2019-10-01"},{"$f":"IF(DAY(OktNed1)=1,\"\",IF(AND(YEAR(OktNed1+3)=KoledarskoLeto,MONTH(OktNed1+3)=10),OktNed1+3,\"\"))","v":"2019-10-02"},{"$f":"IF(DAY(OktNed1)=1,\"\",IF(AND(YEAR(OktNed1+4)=KoledarskoLeto,MONTH(OktNed1+4)=10),OktNed1+4,\"\"))","v":"2019-10-03"},{"$f":"IF(DAY(OktNed1)=1,\"\",IF(AND(YEAR(OktNed1+5)=KoledarskoLeto,MONTH(OktNed1+5)=10),OktNed1+5,\"\"))","v":"2019-10-04"},{"$f":"IF(DAY(OktNed1)=1,\"\",IF(AND(YEAR(OktNed1+6)=KoledarskoLeto,MONTH(OktNed1+6)=10),OktNed1+6,\"\"))","v":"2019-10-05"},{"$f":"IF(DAY(OktNed1)=1,IF(AND(YEAR(OktNed1)=KoledarskoLeto,MONTH(OktNed1)=10),OktNed1,\"\"),IF(AND(YEAR(OktNed1+7)=KoledarskoLeto,MONTH(OktNed1+7)=10),OktNed1+7,\"\"))","v":"2019-10-06"}]
[null,null,{"$f":"IF(DAY(SepNed1)=1,IF(AND(YEAR(SepNed1+1)=KoledarskoLeto,MONTH(SepNed1+1)=9),SepNed1+1,\"\"),IF(AND(YEAR(SepNed1+8)=KoledarskoLeto,MONTH(SepNed1+8)=9),SepNed1+8,\"\"))","v":"2019-09-02"},{"$f":"IF(DAY(SepNed1)=1,IF(AND(YEAR(SepNed1+2)=KoledarskoLeto,MONTH(SepNed1+2)=9),SepNed1+2,\"\"),IF(AND(YEAR(SepNed1+9)=KoledarskoLeto,MONTH(SepNed1+9)=9),SepNed1+9,\"\"))","v":"2019-09-03"},{"$f":"IF(DAY(SepNed1)=1,IF(AND(YEAR(SepNed1+3)=KoledarskoLeto,MONTH(SepNed1+3)=9),SepNed1+3,\"\"),IF(AND(YEAR(SepNed1+10)=KoledarskoLeto,MONTH(SepNed1+10)=9),SepNed1+10,\"\"))","v":"2019-09-04"},{"$f":"IF(DAY(SepNed1)=1,IF(AND(YEAR(SepNed1+4)=KoledarskoLeto,MONTH(SepNed1+4)=9),SepNed1+4,\"\"),IF(AND(YEAR(SepNed1+11)=KoledarskoLeto,MONTH(SepNed1+11)=9),SepNed1+11,\"\"))","v":"2019-09-05"},{"$f":"IF(DAY(SepNed1)=1,IF(AND(YEAR(SepNed1+5)=KoledarskoLeto,MONTH(SepNed1+5)=9),SepNed1+5,\"\"),IF(AND(YEAR(SepNed1+12)=KoledarskoLeto,MONTH(SepNed1+12)=9),SepNed1+12,\"\"))","v":"2019-09-06"},{"$f":"IF(DAY(SepNed1)=1,IF(AND(YEAR(SepNed1+6)=KoledarskoLeto,MONTH(SepNed1+6)=9),SepNed1+6,\"\"),IF(AND(YEAR(SepNed1+13)=KoledarskoLeto,MONTH(SepNed1+13)=9),SepNed1+13,\"\"))","v":"2019-09-07"},{"$f":"IF(DAY(SepNed1)=1,IF(AND(YEAR(SepNed1+7)=KoledarskoLeto,MONTH(SepNed1+7)=9),SepNed1+7,\"\"),IF(AND(YEAR(SepNed1+14)=KoledarskoLeto,MONTH(SepNed1+14)=9),SepNed1+14,\"\"))","v":"2019-09-08"},null,{"$f":"IF(DAY(OktNed1)=1,IF(AND(YEAR(OktNed1+1)=KoledarskoLeto,MONTH(OktNed1+1)=10),OktNed1+1,\"\"),IF(AND(YEAR(OktNed1+8)=KoledarskoLeto,MONTH(OktNed1+8)=10),OktNed1+8,\"\"))","v":"2019-10-07"},{"$f":"IF(DAY(OktNed1)=1,IF(AND(YEAR(OktNed1+2)=KoledarskoLeto,MONTH(OktNed1+2)=10),OktNed1+2,\"\"),IF(AND(YEAR(OktNed1+9)=KoledarskoLeto,MONTH(OktNed1+9)=10),OktNed1+9,\"\"))","v":"2019-10-08"},{"$f":"IF(DAY(OktNed1)=1,IF(AND(YEAR(OktNed1+3)=KoledarskoLeto,MONTH(OktNed1+3)=10),OktNed1+3,\"\"),IF(AND(YEAR(OktNed1+10)=KoledarskoLeto,MONTH(OktNed1+10)=10),OktNed1+10,\"\"))","v":"2019-10-09"},{"$f":"IF(DAY(OktNed1)=1,IF(AND(YEAR(OktNed1+4)=KoledarskoLeto,MONTH(OktNed1+4)=10),OktNed1+4,\"\"),IF(AND(YEAR(OktNed1+11)=KoledarskoLeto,MONTH(OktNed1+11)=10),OktNed1+11,\"\"))","v":"2019-10-10"},{"$f":"IF(DAY(OktNed1)=1,IF(AND(YEAR(OktNed1+5)=KoledarskoLeto,MONTH(OktNed1+5)=10),OktNed1+5,\"\"),IF(AND(YEAR(OktNed1+12)=KoledarskoLeto,MONTH(OktNed1+12)=10),OktNed1+12,\"\"))","v":"2019-10-11"},{"$f":"IF(DAY(OktNed1)=1,IF(AND(YEAR(OktNed1+6)=KoledarskoLeto,MONTH(OktNed1+6)=10),OktNed1+6,\"\"),IF(AND(YEAR(OktNed1+13)=KoledarskoLeto,MONTH(OktNed1+13)=10),OktNed1+13,\"\"))","v":"2019-10-12"},{"$f":"IF(DAY(OktNed1)=1,IF(AND(YEAR(OktNed1+7)=KoledarskoLeto,MONTH(OktNed1+7)=10),OktNed1+7,\"\"),IF(AND(YEAR(OktNed1+14)=KoledarskoLeto,MONTH(OktNed1+14)=10),OktNed1+14,\"\"))","v":"2019-10-13"}]
[null,null,{"$f":"IF(DAY(SepNed1)=1,IF(AND(YEAR(SepNed1+8)=KoledarskoLeto,MONTH(SepNed1+8)=9),SepNed1+8,\"\"),IF(AND(YEAR(SepNed1+15)=KoledarskoLeto,MONTH(SepNed1+15)=9),SepNed1+15,\"\"))","v":"2019-09-09"},{"$f":"IF(DAY(SepNed1)=1,IF(AND(YEAR(SepNed1+9)=KoledarskoLeto,MONTH(SepNed1+9)=9),SepNed1+9,\"\"),IF(AND(YEAR(SepNed1+16)=KoledarskoLeto,MONTH(SepNed1+16)=9),SepNed1+16,\"\"))","v":"2019-09-10"},{"$f":"IF(DAY(SepNed1)=1,IF(AND(YEAR(SepNed1+10)=KoledarskoLeto,MONTH(SepNed1+10)=9),SepNed1+10,\"\"),IF(AND(YEAR(SepNed1+17)=KoledarskoLeto,MONTH(SepNed1+17)=9),SepNed1+17,\"\"))","v":"2019-09-11"},{"$f":"IF(DAY(SepNed1)=1,IF(AND(YEAR(SepNed1+11)=KoledarskoLeto,MONTH(SepNed1+11)=9),SepNed1+11,\"\"),IF(AND(YEAR(SepNed1+18)=KoledarskoLeto,MONTH(SepNed1+18)=9),SepNed1+18,\"\"))","v":"2019-09-12"},{"$f":"IF(DAY(SepNed1)=1,IF(AND(YEAR(SepNed1+12)=KoledarskoLeto,MONTH(SepNed1+12)=9),SepNed1+12,\"\"),IF(AND(YEAR(SepNed1+19)=KoledarskoLeto,MONTH(SepNed1+19)=9),SepNed1+19,\"\"))","v":"2019-09-13"},{"$f":"IF(DAY(SepNed1)=1,IF(AND(YEAR(SepNed1+13)=KoledarskoLeto,MONTH(SepNed1+13)=9),SepNed1+13,\"\"),IF(AND(YEAR(SepNed1+20)=KoledarskoLeto,MONTH(SepNed1+20)=9),SepNed1+20,\"\"))","v":"2019-09-14"},{"$f":"IF(DAY(SepNed1)=1,IF(AND(YEAR(SepNed1+14)=KoledarskoLeto,MONTH(SepNed1+14)=9),SepNed1+14,\"\"),IF(AND(YEAR(SepNed1+21)=KoledarskoLeto,MONTH(SepNed1+21)=9),SepNed1+21,\"\"))","v":"2019-09-15"},null,{"$f":"IF(DAY(OktNed1)=1,IF(AND(YEAR(OktNed1+8)=KoledarskoLeto,MONTH(OktNed1+8)=10),OktNed1+8,\"\"),IF(AND(YEAR(OktNed1+15)=KoledarskoLeto,MONTH(OktNed1+15)=10),OktNed1+15,\"\"))","v":"2019-10-14"},{"$f":"IF(DAY(OktNed1)=1,IF(AND(YEAR(OktNed1+9)=KoledarskoLeto,MONTH(OktNed1+9)=10),OktNed1+9,\"\"),IF(AND(YEAR(OktNed1+16)=KoledarskoLeto,MONTH(OktNed1+16)=10),OktNed1+16,\"\"))","v":"2019-10-15"},{"$f":"IF(DAY(OktNed1)=1,IF(AND(YEAR(OktNed1+10)=KoledarskoLeto,MONTH(OktNed1+10)=10),OktNed1+10,\"\"),IF(AND(YEAR(OktNed1+17)=KoledarskoLeto,MONTH(OktNed1+17)=10),OktNed1+17,\"\"))","v":"2019-10-16"},{"$f":"IF(DAY(OktNed1)=1,IF(AND(YEAR(OktNed1+11)=KoledarskoLeto,MONTH(OktNed1+11)=10),OktNed1+11,\"\"),IF(AND(YEAR(OktNed1+18)=KoledarskoLeto,MONTH(OktNed1+18)=10),OktNed1+18,\"\"))","v":"2019-10-17"},{"$f":"IF(DAY(OktNed1)=1,IF(AND(YEAR(OktNed1+12)=KoledarskoLeto,MONTH(OktNed1+12)=10),OktNed1+12,\"\"),IF(AND(YEAR(OktNed1+19)=KoledarskoLeto,MONTH(OktNed1+19)=10),OktNed1+19,\"\"))","v":"2019-10-18"},{"$f":"IF(DAY(OktNed1)=1,IF(AND(YEAR(OktNed1+13)=KoledarskoLeto,MONTH(OktNed1+13)=10),OktNed1+13,\"\"),IF(AND(YEAR(OktNed1+20)=KoledarskoLeto,MONTH(OktNed1+20)=10),OktNed1+20,\"\"))","v":"2019-10-19"},{"$f":"IF(DAY(OktNed1)=1,IF(AND(YEAR(OktNed1+14)=KoledarskoLeto,MONTH(OktNed1+14)=10),OktNed1+14,\"\"),IF(AND(YEAR(OktNed1+21)=KoledarskoLeto,MONTH(OktNed1+21)=10),OktNed1+21,\"\"))","v":"2019-10-20"}]
[null,null,{"$f":"IF(DAY(SepNed1)=1,IF(AND(YEAR(SepNed1+15)=KoledarskoLeto,MONTH(SepNed1+15)=9),SepNed1+15,\"\"),IF(AND(YEAR(SepNed1+22)=KoledarskoLeto,MONTH(SepNed1+22)=9),SepNed1+22,\"\"))","v":"2019-09-16"},{"$f":"IF(DAY(SepNed1)=1,IF(AND(YEAR(SepNed1+16)=KoledarskoLeto,MONTH(SepNed1+16)=9),SepNed1+16,\"\"),IF(AND(YEAR(SepNed1+23)=KoledarskoLeto,MONTH(SepNed1+23)=9),SepNed1+23,\"\"))","v":"2019-09-17"},{"$f":"IF(DAY(SepNed1)=1,IF(AND(YEAR(SepNed1+17)=KoledarskoLeto,MONTH(SepNed1+17)=9),SepNed1+17,\"\"),IF(AND(YEAR(SepNed1+24)=KoledarskoLeto,MONTH(SepNed1+24)=9),SepNed1+24,\"\"))","v":"2019-09-18"},{"$f":"IF(DAY(SepNed1)=1,IF(AND(YEAR(SepNed1+18)=KoledarskoLeto,MONTH(SepNed1+18)=9),SepNed1+18,\"\"),IF(AND(YEAR(SepNed1+25)=KoledarskoLeto,MONTH(SepNed1+25)=9),SepNed1+25,\"\"))","v":"2019-09-19"},{"$f":"IF(DAY(SepNed1)=1,IF(AND(YEAR(SepNed1+19)=KoledarskoLeto,MONTH(SepNed1+19)=9),SepNed1+19,\"\"),IF(AND(YEAR(SepNed1+26)=KoledarskoLeto,MONTH(SepNed1+26)=9),SepNed1+26,\"\"))","v":"2019-09-20"},{"$f":"IF(DAY(SepNed1)=1,IF(AND(YEAR(SepNed1+20)=KoledarskoLeto,MONTH(SepNed1+20)=9),SepNed1+20,\"\"),IF(AND(YEAR(SepNed1+27)=KoledarskoLeto,MONTH(SepNed1+27)=9),SepNed1+27,\"\"))","v":"2019-09-21"},{"$f":"IF(DAY(SepNed1)=1,IF(AND(YEAR(SepNed1+21)=KoledarskoLeto,MONTH(SepNed1+21)=9),SepNed1+21,\"\"),IF(AND(YEAR(SepNed1+28)=KoledarskoLeto,MONTH(SepNed1+28)=9),SepNed1+28,\"\"))","v":"2019-09-22"},null,{"$f":"IF(DAY(OktNed1)=1,IF(AND(YEAR(OktNed1+15)=KoledarskoLeto,MONTH(OktNed1+15)=10),OktNed1+15,\"\"),IF(AND(YEAR(OktNed1+22)=KoledarskoLeto,MONTH(OktNed1+22)=10),OktNed1+22,\"\"))","v":"2019-10-21"},{"$f":"IF(DAY(OktNed1)=1,IF(AND(YEAR(OktNed1+16)=KoledarskoLeto,MONTH(OktNed1+16)=10),OktNed1+16,\"\"),IF(AND(YEAR(OktNed1+23)=KoledarskoLeto,MONTH(OktNed1+23)=10),OktNed1+23,\"\"))","v":"2019-10-22"},{"$f":"IF(DAY(OktNed1)=1,IF(AND(YEAR(OktNed1+17)=KoledarskoLeto,MONTH(OktNed1+17)=10),OktNed1+17,\"\"),IF(AND(YEAR(OktNed1+24)=KoledarskoLeto,MONTH(OktNed1+24)=10),OktNed1+24,\"\"))","v":"2019-10-23"},{"$f":"IF(DAY(OktNed1)=1,IF(AND(YEAR(OktNed1+18)=KoledarskoLeto,MONTH(OktNed1+18)=10),OktNed1+18,\"\"),IF(AND(YEAR(OktNed1+25)=KoledarskoLeto,MONTH(OktNed1+25)=10),OktNed1+25,\"\"))","v":"2019-10-24"},{"$f":"IF(DAY(OktNed1)=1,IF(AND(YEAR(OktNed1+19)=KoledarskoLeto,MONTH(OktNed1+19)=10),OktNed1+19,\"\"),IF(AND(YEAR(OktNed1+26)=KoledarskoLeto,MONTH(OktNed1+26)=10),OktNed1+26,\"\"))","v":"2019-10-25"},{"$f":"IF(DAY(OktNed1)=1,IF(AND(YEAR(OktNed1+20)=KoledarskoLeto,MONTH(OktNed1+20)=10),OktNed1+20,\"\"),IF(AND(YEAR(OktNed1+27)=KoledarskoLeto,MONTH(OktNed1+27)=10),OktNed1+27,\"\"))","v":"2019-10-26"},{"$f":"IF(DAY(OktNed1)=1,IF(AND(YEAR(OktNed1+21)=KoledarskoLeto,MONTH(OktNed1+21)=10),OktNed1+21,\"\"),IF(AND(YEAR(OktNed1+28)=KoledarskoLeto,MONTH(OktNed1+28)=10),OktNed1+28,\"\"))","v":"2019-10-27"},{"$nulls":3},"Zelena ulica 123"]
[null,null,{"$f":"IF(DAY(SepNed1)=1,IF(AND(YEAR(SepNed1+22)=KoledarskoLeto,MONTH(SepNed1+22)=9),SepNed1+22,\"\"),IF(AND(YEAR(SepNed1+29)=KoledarskoLeto,MONTH(SepNed1+29)=9),SepNed1+29,\"\"))","v":"2019-09-23"},{"$f":"IF(DAY(SepNed1)=1,IF(AND(YEAR(SepNed1+23)=KoledarskoLeto,MONTH(SepNed1+23)=9),SepNed1+23,\"\"),IF(AND(YEAR(SepNed1+30)=KoledarskoLeto,MONTH(SepNed1+30)=9),SepNed1+30,\"\"))","v":"2019-09-24"},{"$f":"IF(DAY(SepNed1)=1,IF(AND(YEAR(SepNed1+24)=KoledarskoLeto,MONTH(SepNed1+24)=9),SepNed1+24,\"\"),IF(AND(YEAR(SepNed1+31)=KoledarskoLeto,MONTH(SepNed1+31)=9),SepNed1+31,\"\"))","v":"2019-09-25"},{"$f":"IF(DAY(SepNed1)=1,IF(AND(YEAR(SepNed1+25)=KoledarskoLeto,MONTH(SepNed1+25)=9),SepNed1+25,\"\"),IF(AND(YEAR(SepNed1+32)=KoledarskoLeto,MONTH(SepNed1+32)=9),SepNed1+32,\"\"))","v":"2019-09-26"},{"$f":"IF(DAY(SepNed1)=1,IF(AND(YEAR(SepNed1+26)=KoledarskoLeto,MONTH(SepNed1+26)=9),SepNed1+26,\"\"),IF(AND(YEAR(SepNed1+33)=KoledarskoLeto,MONTH(SepNed1+33)=9),SepNed1+33,\"\"))","v":"2019-09-27"},{"$f":"IF(DAY(SepNed1)=1,IF(AND(YEAR(SepNed1+27)=KoledarskoLeto,MONTH(SepNed1+27)=9),SepNed1+27,\"\"),IF(AND(YEAR(SepNed1+34)=KoledarskoLeto,MONTH(SepNed1+34)=9),SepNed1+34,\"\"))","v":"2019-09-28"},{"$f":"IF(DAY(SepNed1)=1,IF(AND(YEAR(SepNed1+28)=KoledarskoLeto,MONTH(SepNed1+28)=9),SepNed1+28,\"\"),IF(AND(YEAR(SepNed1+35)=KoledarskoLeto,MONTH(SepNed1+35)=9),SepNed1+35,\"\"))","v":"2019-09-29"},null,{"$f":"IF(DAY(OktNed1)=1,IF(AND(YEAR(OktNed1+22)=KoledarskoLeto,MONTH(OktNed1+22)=10),OktNed1+22,\"\"),IF(AND(YEAR(OktNed1+29)=KoledarskoLeto,MONTH(OktNed1+29)=10),OktNed1+29,\"\"))","v":"2019-10-28"},{"$f":"IF(DAY(OktNed1)=1,IF(AND(YEAR(OktNed1+23)=KoledarskoLeto,MONTH(OktNed1+23)=10),OktNed1+23,\"\"),IF(AND(YEAR(OktNed1+30)=KoledarskoLeto,MONTH(OktNed1+30)=10),OktNed1+30,\"\"))","v":"2019-10-29"},{"$f":"IF(DAY(OktNed1)=1,IF(AND(YEAR(OktNed1+24)=KoledarskoLeto,MONTH(OktNed1+24)=10),OktNed1+24,\"\"),IF(AND(YEAR(OktNed1+31)=KoledarskoLeto,MONTH(OktNed1+31)=10),OktNed1+31,\"\"))","v":"2019-10-30"},{"$f":"IF(DAY(OktNed1)=1,IF(AND(YEAR(OktNed1+25)=KoledarskoLeto,MONTH(OktNed1+25)=10),OktNed1+25,\"\"),IF(AND(YEAR(OktNed1+32)=KoledarskoLeto,MONTH(OktNed1+32)=10),OktNed1+32,\"\"))","v":"2019-10-31"},{"$f":"IF(DAY(OktNed1)=1,IF(AND(YEAR(OktNed1+26)=KoledarskoLeto,MONTH(OktNed1+26)=10),OktNed1+26,\"\"),IF(AND(YEAR(OktNed1+33)=KoledarskoLeto,MONTH(OktNed1+33)=10),OktNed1+33,\"\"))","v":""},{"$f":"IF(DAY(OktNed1)=1,IF(AND(YEAR(OktNed1+27)=KoledarskoLeto,MONTH(OktNed1+27)=10),OktNed1+27,\"\"),IF(AND(YEAR(OktNed1+34)=KoledarskoLeto,MONTH(OktNed1+34)=10),OktNed1+34,\"\"))","v":""},{"$f":"IF(DAY(OktNed1)=1,IF(AND(YEAR(OktNed1+28)=KoledarskoLeto,MONTH(OktNed1+28)=10),OktNed1+28,\"\"),IF(AND(YEAR(OktNed1+35)=KoledarskoLeto,MONTH(OktNed1+35)=10),OktNed1+35,\"\"))","v":""},{"$nulls":3},"1000 Ljubljana, Slovenija"]
[null,null,{"$f":"IF(DAY(SepNed1)=1,IF(AND(YEAR(SepNed1+29)=KoledarskoLeto,MONTH(SepNed1+29)=9),SepNed1+29,\"\"),IF(AND(YEAR(SepNed1+36)=KoledarskoLeto,MONTH(SepNed1+36)=9),SepNed1+36,\"\"))","v":"2019-09-30"},{"$f":"IF(DAY(SepNed1)=1,IF(AND(YEAR(SepNed1+30)=KoledarskoLeto,MONTH(SepNed1+30)=9),SepNed1+30,\"\"),IF(AND(YEAR(SepNed1+37)=KoledarskoLeto,MONTH(SepNed1+37)=9),SepNed1+37,\"\"))","v":""},{"$f":"IF(DAY(SepNed1)=1,IF(AND(YEAR(SepNed1+31)=KoledarskoLeto,MONTH(SepNed1+31)=9),SepNed1+31,\"\"),IF(AND(YEAR(SepNed1+38)=KoledarskoLeto,MONTH(SepNed1+38)=9),SepNed1+38,\"\"))","v":""},{"$f":"IF(DAY(SepNed1)=1,IF(AND(YEAR(SepNed1+32)=KoledarskoLeto,MONTH(SepNed1+32)=9),SepNed1+32,\"\"),IF(AND(YEAR(SepNed1+39)=KoledarskoLeto,MONTH(SepNed1+39)=9),SepNed1+39,\"\"))","v":""},{"$f":"IF(DAY(SepNed1)=1,IF(AND(YEAR(SepNed1+33)=KoledarskoLeto,MONTH(SepNed1+33)=9),SepNed1+33,\"\"),IF(AND(YEAR(SepNed1+40)=KoledarskoLeto,MONTH(SepNed1+40)=9),SepNed1+40,\"\"))","v":""},{"$f":"IF(DAY(SepNed1)=1,IF(AND(YEAR(SepNed1+34)=KoledarskoLeto,MONTH(SepNed1+34)=9),SepNed1+34,\"\"),IF(AND(YEAR(SepNed1+41)=KoledarskoLeto,MONTH(SepNed1+41)=9),SepNed1+41,\"\"))","v":""},{"$f":"IF(DAY(SepNed1)=1,IF(AND(YEAR(SepNed1+35)=KoledarskoLeto,MONTH(SepNed1+35)=9),SepNed1+35,\"\"),IF(AND(YEAR(SepNed1+42)=KoledarskoLeto,MONTH(SepNed1+42)=9),SepNed1+42,\"\"))","v":""},null,{"$f":"IF(DAY(OktNed1)=1,IF(AND(YEAR(OktNed1+29)=KoledarskoLeto,MONTH(OktNed1+29)=10),OktNed1+29,\"\"),IF(AND(YEAR(OktNed1+36)=KoledarskoLeto,MONTH(OktNed1+36)=10),OktNed1+36,\"\"))","v":""},{"$f":"IF(DAY(OktNed1)=1,IF(AND(YEAR(OktNed1+30)=KoledarskoLeto,MONTH(OktNed1+30)=10),OktNed1+30,\"\"),IF(AND(YEAR(OktNed1+37)=KoledarskoLeto,MONTH(OktNed1+37)=10),OktNed1+37,\"\"))","v":""},{"$f":"IF(DAY(OktNed1)=1,IF(AND(YEAR(OktNed1+31)=KoledarskoLeto,MONTH(OktNed1+31)=10),OktNed1+31,\"\"),IF(AND(YEAR(OktNed1+38)=KoledarskoLeto,MONTH(OktNed1+38)=10),OktNed1+38,\"\"))","v":""},{"$f":"IF(DAY(OktNed1)=1,IF(AND(YEAR(OktNed1+32)=KoledarskoLeto,MONTH(OktNed1+32)=10),OktNed1+32,\"\"),IF(AND(YEAR(OktNed1+39)=KoledarskoLeto,MONTH(OktNed1+39)=10),OktNed1+39,\"\"))","v":""},{"$f":"IF(DAY(OktNed1)=1,IF(AND(YEAR(OktNed1+33)=KoledarskoLeto,MONTH(OktNed1+33)=10),OktNed1+33,\"\"),IF(AND(YEAR(OktNed1+40)=KoledarskoLeto,MONTH(OktNed1+40)=10),OktNed1+40,\"\"))","v":""},{"$f":"IF(DAY(OktNed1)=1,IF(AND(YEAR(OktNed1+34)=KoledarskoLeto,MONTH(OktNed1+34)=10),OktNed1+34,\"\"),IF(AND(YEAR(OktNed1+41)=KoledarskoLeto,MONTH(OktNed1+41)=10),OktNed1+41,\"\"))","v":""},{"$f":"IF(DAY(OktNed1)=1,IF(AND(YEAR(OktNed1+35)=KoledarskoLeto,MONTH(OktNed1+35)=10),OktNed1+35,\"\"),IF(AND(YEAR(OktNed1+42)=KoledarskoLeto,MONTH(OktNed1+42)=10),OktNed1+42,\"\"))","v":""}]
[{"$nulls":20},"456 555 0123"]
[null,null,"NOVEMBER",{"$nulls":7},"DECEMBER",{"$nulls":9},"info@contoso.com"]
[null,null,"P","T","S","Č","P","S","N",null,"P","T","S","Č","P","S","N",{"$nulls":3},"www.contoso.com"]
[null,null,{"$f":"IF(DAY(NovNed1)=1,\"\",IF(AND(YEAR(NovNed1+1)=KoledarskoLeto,MONTH(NovNed1+1)=11),NovNed1+1,\"\"))","v":""},{"$f":"IF(DAY(NovNed1)=1,\"\",IF(AND(YEAR(NovNed1+2)=KoledarskoLeto,MONTH(NovNed1+2)=11),NovNed1+2,\"\"))","v":""},{"$f":"IF(DAY(NovNed1)=1,\"\",IF(AND(YEAR(NovNed1+3)=KoledarskoLeto,MONTH(NovNed1+3)=11),NovNed1+3,\"\"))","v":""},{"$f":"IF(DAY(NovNed1)=1,\"\",IF(AND(YEAR(NovNed1+4)=KoledarskoLeto,MONTH(NovNed1+4)=11),NovNed1+4,\"\"))","v":""},{"$f":"IF(DAY(NovNed1)=1,\"\",IF(AND(YEAR(NovNed1+5)=KoledarskoLeto,MONTH(NovNed1+5)=11),NovNed1+5,\"\"))","v":"2019-11-01"},{"$f":"IF(DAY(NovNed1)=1,\"\",IF(AND(YEAR(NovNed1+6)=KoledarskoLeto,MONTH(NovNed1+6)=11),NovNed1+6,\"\"))","v":"2019-11-02"},{"$f":"IF(DAY(NovNed1)=1,IF(AND(YEAR(NovNed1)=KoledarskoLeto,MONTH(NovNed1)=11),NovNed1,\"\"),IF(AND(YEAR(NovNed1+7)=KoledarskoLeto,MONTH(NovNed1+7)=11),NovNed1+7,\"\"))","v":"2019-11-03"},null,{"$f":"IF(DAY(DecNed1)=1,\"\",IF(AND(YEAR(DecNed1+1)=KoledarskoLeto,MONTH(DecNed1+1)=12),DecNed1+1,\"\"))","v":""},{"$f":"IF(DAY(DecNed1)=1,\"\",IF(AND(YEAR(DecNed1+2)=KoledarskoLeto,MONTH(DecNed1+2)=12),DecNed1+2,\"\"))","v":""},{"$f":"IF(DAY(DecNed1)=1,\"\",IF(AND(YEAR(DecNed1+3)=KoledarskoLeto,MONTH(DecNed1+3)=12),DecNed1+3,\"\"))","v":""},{"$f":"IF(DAY(DecNed1)=1,\"\",IF(AND(YEAR(DecNed1+4)=KoledarskoLeto,MONTH(DecNed1+4)=12),DecNed1+4,\"\"))","v":""},{"$f":"IF(DAY(DecNed1)=1,\"\",IF(AND(YEAR(DecNed1+5)=KoledarskoLeto,MONTH(DecNed1+5)=12),DecNed1+5,\"\"))","v":""},{"$f":"IF(DAY(DecNed1)=1,\"\",IF(AND(YEAR(DecNed1+6)=KoledarskoLeto,MONTH(DecNed1+6)=12),DecNed1+6,\"\"))","v":""},{"$f":"IF(DAY(DecNed1)=1,IF(AND(YEAR(DecNed1)=KoledarskoLeto,MONTH(DecNed1)=12),DecNed1,\"\"),IF(AND(YEAR(DecNed1+7)=KoledarskoLeto,MONTH(DecNed1+7)=12),DecNed1+7,\"\"))","v":"2019-12-01"}]
[null,null,{"$f":"IF(DAY(NovNed1)=1,IF(AND(YEAR(NovNed1+1)=KoledarskoLeto,MONTH(NovNed1+1)=11),NovNed1+1,\"\"),IF(AND(YEAR(NovNed1+8)=KoledarskoLeto,MONTH(NovNed1+8)=11),NovNed1+8,\"\"))","v":"2019-11-04"},{"$f":"IF(DAY(NovNed1)=1,IF(AND(YEAR(NovNed1+2)=KoledarskoLeto,MONTH(NovNed1+2)=11),NovNed1+2,\"\"),IF(AND(YEAR(NovNed1+9)=KoledarskoLeto,MONTH(NovNed1+9)=11),NovNed1+9,\"\"))","v":"2019-11-05"},{"$f":"IF(DAY(NovNed1)=1,IF(AND(YEAR(NovNed1+3)=KoledarskoLeto,MONTH(NovNed1+3)=11),NovNed1+3,\"\"),IF(AND(YEAR(NovNed1+10)=KoledarskoLeto,MONTH(NovNed1+10)=11),NovNed1+10,\"\"))","v":"2019-11-06"},{"$f":"IF(DAY(NovNed1)=1,IF(AND(YEAR(NovNed1+4)=KoledarskoLeto,MONTH(NovNed1+4)=11),NovNed1+4,\"\"),IF(AND(YEAR(NovNed1+11)=KoledarskoLeto,MONTH(NovNed1+11)=11),NovNed1+11,\"\"))","v":"2019-11-07"},{"$f":"IF(DAY(NovNed1)=1,IF(AND(YEAR(NovNed1+5)=KoledarskoLeto,MONTH(NovNed1+5)=11),NovNed1+5,\"\"),IF(AND(YEAR(NovNed1+12)=KoledarskoLeto,MONTH(NovNed1+12)=11),NovNed1+12,\"\"))","v":"2019-11-08"},{"$f":"IF(DAY(NovNed1)=1,IF(AND(YEAR(NovNed1+6)=KoledarskoLeto,MONTH(NovNed1+6)=11),NovNed1+6,\"\"),IF(AND(YEAR(NovNed1+13)=KoledarskoLeto,MONTH(NovNed1+13)=11),NovNed1+13,\"\"))","v":"2019-11-09"},{"$f":"IF(DAY(NovNed1)=1,IF(AND(YEAR(NovNed1+7)=KoledarskoLeto,MONTH(NovNed1+7)=11),NovNed1+7,\"\"),IF(AND(YEAR(NovNed1+14)=KoledarskoLeto,MONTH(NovNed1+14)=11),NovNed1+14,\"\"))","v":"2019-11-10"},null,{"$f":"IF(DAY(DecNed1)=1,IF(AND(YEAR(DecNed1+1)=KoledarskoLeto,MONTH(DecNed1+1)=12),DecNed1+1,\"\"),IF(AND(YEAR(DecNed1+8)=KoledarskoLeto,MONTH(DecNed1+8)=12),DecNed1+8,\"\"))","v":"2019-12-02"},{"$f":"IF(DAY(DecNed1)=1,IF(AND(YEAR(DecNed1+2)=KoledarskoLeto,MONTH(DecNed1+2)=12),DecNed1+2,\"\"),IF(AND(YEAR(DecNed1+9)=KoledarskoLeto,MONTH(DecNed1+9)=12),DecNed1+9,\"\"))","v":"2019-12-03"},{"$f":"IF(DAY(DecNed1)=1,IF(AND(YEAR(DecNed1+3)=KoledarskoLeto,MONTH(DecNed1+3)=12),DecNed1+3,\"\"),IF(AND(YEAR(DecNed1+10)=KoledarskoLeto,MONTH(DecNed1+10)=12),DecNed1+10,\"\"))","v":"2019-12-04"},{"$f":"IF(DAY(DecNed1)=1,IF(AND(YEAR(DecNed1+4)=KoledarskoLeto,MONTH(DecNed1+4)=12),DecNed1+4,\"\"),IF(AND(YEAR(DecNed1+11)=KoledarskoLeto,MONTH(DecNed1+11)=12),DecNed1+11,\"\"))","v":"2019-12-05"},{"$f":"IF(DAY(DecNed1)=1,IF(AND(YEAR(DecNed1+5)=KoledarskoLeto,MONTH(DecNed1+5)=12),DecNed1+5,\"\"),IF(AND(YEAR(DecNed1+12)=KoledarskoLeto,MONTH(DecNed1+12)=12),DecNed1+12,\"\"))","v":"2019-12-06"},{"$f":"IF(DAY(DecNed1)=1,IF(AND(YEAR(DecNed1+6)=KoledarskoLeto,MONTH(DecNed1+6)=12),DecNed1+6,\"\"),IF(AND(YEAR(DecNed1+13)=KoledarskoLeto,MONTH(DecNed1+13)=12),DecNed1+13,\"\"))","v":"2019-12-07"},{"$f":"IF(DAY(DecNed1)=1,IF(AND(YEAR(DecNed1+7)=KoledarskoLeto,MONTH(DecNed1+7)=12),DecNed1+7,\"\"),IF(AND(YEAR(DecNed1+14)=KoledarskoLeto,MONTH(DecNed1+14)=12),DecNed1+14,\"\"))","v":"2019-12-08"}]
[null,null,{"$f":"IF(DAY(NovNed1)=1,IF(AND(YEAR(NovNed1+8)=KoledarskoLeto,MONTH(NovNed1+8)=11),NovNed1+8,\"\"),IF(AND(YEAR(NovNed1+15)=KoledarskoLeto,MONTH(NovNed1+15)=11),NovNed1+15,\"\"))","v":"2019-11-11"},{"$f":"IF(DAY(NovNed1)=1,IF(AND(YEAR(NovNed1+9)=KoledarskoLeto,MONTH(NovNed1+9)=11),NovNed1+9,\"\"),IF(AND(YEAR(NovNed1+16)=KoledarskoLeto,MONTH(NovNed1+16)=11),NovNed1+16,\"\"))","v":"2019-11-12"},{"$f":"IF(DAY(NovNed1)=1,IF(AND(YEAR(NovNed1+10)=KoledarskoLeto,MONTH(NovNed1+10)=11),NovNed1+10,\"\"),IF(AND(YEAR(NovNed1+17)=KoledarskoLeto,MONTH(NovNed1+17)=11),NovNed1+17,\"\"))","v":"2019-11-13"},{"$f":"IF(DAY(NovNed1)=1,IF(AND(YEAR(NovNed1+11)=KoledarskoLeto,MONTH(NovNed1+11)=11),NovNed1+11,\"\"),IF(AND(YEAR(NovNed1+18)=KoledarskoLeto,MONTH(NovNed1+18)=11),NovNed1+18,\"\"))","v":"2019-11-14"},{"$f":"IF(DAY(NovNed1)=1,IF(AND(YEAR(NovNed1+12)=KoledarskoLeto,MONTH(NovNed1+12)=11),NovNed1+12,\"\"),IF(AND(YEAR(NovNed1+19)=KoledarskoLeto,MONTH(NovNed1+19)=11),NovNed1+19,\"\"))","v":"2019-11-15"},{"$f":"IF(DAY(NovNed1)=1,IF(AND(YEAR(NovNed1+13)=KoledarskoLeto,MONTH(NovNed1+13)=11),NovNed1+13,\"\"),IF(AND(YEAR(NovNed1+20)=KoledarskoLeto,MONTH(NovNed1+20)=11),NovNed1+20,\"\"))","v":"2019-11-16"},{"$f":"IF(DAY(NovNed1)=1,IF(AND(YEAR(NovNed1+14)=KoledarskoLeto,MONTH(NovNed1+14)=11),NovNed1+14,\"\"),IF(AND(YEAR(NovNed1+21)=KoledarskoLeto,MONTH(NovNed1+21)=11),NovNed1+21,\"\"))","v":"2019-11-17"},null,{"$f":"IF(DAY(DecNed1)=1,IF(AND(YEAR(DecNed1+8)=KoledarskoLeto,MONTH(DecNed1+8)=12),DecNed1+8,\"\"),IF(AND(YEAR(DecNed1+15)=KoledarskoLeto,MONTH(DecNed1+15)=12),DecNed1+15,\"\"))","v":"2019-12-09"},{"$f":"IF(DAY(DecNed1)=1,IF(AND(YEAR(DecNed1+9)=KoledarskoLeto,MONTH(DecNed1+9)=12),DecNed1+9,\"\"),IF(AND(YEAR(DecNed1+16)=KoledarskoLeto,MONTH(DecNed1+16)=12),DecNed1+16,\"\"))","v":"2019-12-10"},{"$f":"IF(DAY(DecNed1)=1,IF(AND(YEAR(DecNed1+10)=KoledarskoLeto,MONTH(DecNed1+10)=12),DecNed1+10,\"\"),IF(AND(YEAR(DecNed1+17)=KoledarskoLeto,MONTH(DecNed1+17)=12),DecNed1+17,\"\"))","v":"2019-12-11"},{"$f":"IF(DAY(DecNed1)=1,IF(AND(YEAR(DecNed1+11)=KoledarskoLeto,MONTH(DecNed1+11)=12),DecNed1+11,\"\"),IF(AND(YEAR(DecNed1+18)=KoledarskoLeto,MONTH(DecNed1+18)=12),DecNed1+18,\"\"))","v":"2019-12-12"},{"$f":"IF(DAY(DecNed1)=1,IF(AND(YEAR(DecNed1+12)=KoledarskoLeto,MONTH(DecNed1+12)=12),DecNed1+12,\"\"),IF(AND(YEAR(DecNed1+19)=KoledarskoLeto,MONTH(DecNed1+19)=12),DecNed1+19,\"\"))","v":"2019-12-13"},{"$f":"IF(DAY(DecNed1)=1,IF(AND(YEAR(DecNed1+13)=KoledarskoLeto,MONTH(DecNed1+13)=12),DecNed1+13,\"\"),IF(AND(YEAR(DecNed1+20)=KoledarskoLeto,MONTH(DecNed1+20)=12),DecNed1+20,\"\"))","v":"2019-12-14"},{"$f":"IF(DAY(DecNed1)=1,IF(AND(YEAR(DecNed1+14)=KoledarskoLeto,MONTH(DecNed1+14)=12),DecNed1+14,\"\"),IF(AND(YEAR(DecNed1+21)=KoledarskoLeto,MONTH(DecNed1+21)=12),DecNed1+21,\"\"))","v":"2019-12-15"}]
[null,null,{"$f":"IF(DAY(NovNed1)=1,IF(AND(YEAR(NovNed1+15)=KoledarskoLeto,MONTH(NovNed1+15)=11),NovNed1+15,\"\"),IF(AND(YEAR(NovNed1+22)=KoledarskoLeto,MONTH(NovNed1+22)=11),NovNed1+22,\"\"))","v":"2019-11-18"},{"$f":"IF(DAY(NovNed1)=1,IF(AND(YEAR(NovNed1+16)=KoledarskoLeto,MONTH(NovNed1+16)=11),NovNed1+16,\"\"),IF(AND(YEAR(NovNed1+23)=KoledarskoLeto,MONTH(NovNed1+23)=11),NovNed1+23,\"\"))","v":"2019-11-19"},{"$f":"IF(DAY(NovNed1)=1,IF(AND(YEAR(NovNed1+17)=KoledarskoLeto,MONTH(NovNed1+17)=11),NovNed1+17,\"\"),IF(AND(YEAR(NovNed1+24)=KoledarskoLeto,MONTH(NovNed1+24)=11),NovNed1+24,\"\"))","v":"2019-11-20"},{"$f":"IF(DAY(NovNed1)=1,IF(AND(YEAR(NovNed1+18)=KoledarskoLeto,MONTH(NovNed1+18)=11),NovNed1+18,\"\"),IF(AND(YEAR(NovNed1+25)=KoledarskoLeto,MONTH(NovNed1+25)=11),NovNed1+25,\"\"))","v":"2019-11-21"},{"$f":"IF(DAY(NovNed1)=1,IF(AND(YEAR(NovNed1+19)=KoledarskoLeto,MONTH(NovNed1+19)=11),NovNed1+19,\"\"),IF(AND(YEAR(NovNed1+26)=KoledarskoLeto,MONTH(NovNed1+26)=11),NovNed1+26,\"\"))","v":"2019-11-22"},{"$f":"IF(DAY(NovNed1)=1,IF(AND(YEAR(NovNed1+20)=KoledarskoLeto,MONTH(NovNed1+20)=11),NovNed1+20,\"\"),IF(AND(YEAR(NovNed1+27)=KoledarskoLeto,MONTH(NovNed1+27)=11),NovNed1+27,\"\"))","v":"2019-11-23"},{"$f":"IF(DAY(NovNed1)=1,IF(AND(YEAR(NovNed1+21)=KoledarskoLeto,MONTH(NovNed1+21)=11),NovNed1+21,\"\"),IF(AND(YEAR(NovNed1+28)=KoledarskoLeto,MONTH(NovNed1+28)=11),NovNed1+28,\"\"))","v":"2019-11-24"},null,{"$f":"IF(DAY(DecNed1)=1,IF(AND(YEAR(DecNed1+15)=KoledarskoLeto,MONTH(DecNed1+15)=12),DecNed1+15,\"\"),IF(AND(YEAR(DecNed1+22)=KoledarskoLeto,MONTH(DecNed1+22)=12),DecNed1+22,\"\"))","v":"2019-12-16"},{"$f":"IF(DAY(DecNed1)=1,IF(AND(YEAR(DecNed1+16)=KoledarskoLeto,MONTH(DecNed1+16)=12),DecNed1+16,\"\"),IF(AND(YEAR(DecNed1+23)=KoledarskoLeto,MONTH(DecNed1+23)=12),DecNed1+23,\"\"))","v":"2019-12-17"},{"$f":"IF(DAY(DecNed1)=1,IF(AND(YEAR(DecNed1+17)=KoledarskoLeto,MONTH(DecNed1+17)=12),DecNed1+17,\"\"),IF(AND(YEAR(DecNed1+24)=KoledarskoLeto,MONTH(DecNed1+24)=12),DecNed1+24,\"\"))","v":"2019-12-18"},{"$f":"IF(DAY(DecNed1)=1,IF(AND(YEAR(DecNed1+18)=KoledarskoLeto,MONTH(DecNed1+18)=12),DecNed1+18,\"\"),IF(AND(YEAR(DecNed1+25)=KoledarskoLeto,MONTH(DecNed1+25)=12),DecNed1+25,\"\"))","v":"2019-12-19"},{"$f":"IF(DAY(DecNed1)=1,IF(AND(YEAR(DecNed1+19)=KoledarskoLeto,MONTH(DecNed1+19)=12),DecNed1+19,\"\"),IF(AND(YEAR(DecNed1+26)=KoledarskoLeto,MONTH(DecNed1+26)=12),DecNed1+26,\"\"))","v":"2019-12-20"},{"$f":"IF(DAY(DecNed1)=1,IF(AND(YEAR(DecNed1+20)=KoledarskoLeto,MONTH(DecNed1+20)=12),DecNed1+20,\"\"),IF(AND(YEAR(DecNed1+27)=KoledarskoLeto,MONTH(DecNed1+27)=12),DecNed1+27,\"\"))","v":"2019-12-21"},{"$f":"IF(DAY(DecNed1)=1,IF(AND(YEAR(DecNed1+21)=KoledarskoLeto,MONTH(DecNed1+21)=12),DecNed1+21,\"\"),IF(AND(YEAR(DecNed1+28)=KoledarskoLeto,MONTH(DecNed1+28)=12),DecNed1+28,\"\"))","v":"2019-12-22"}]
[null,null,{"$f":"IF(DAY(NovNed1)=1,IF(AND(YEAR(NovNed1+22)=KoledarskoLeto,MONTH(NovNed1+22)=11),NovNed1+22,\"\"),IF(AND(YEAR(NovNed1+29)=KoledarskoLeto,MONTH(NovNed1+29)=11),NovNed1+29,\"\"))","v":"2019-11-25"},{"$f":"IF(DAY(NovNed1)=1,IF(AND(YEAR(NovNed1+23)=KoledarskoLeto,MONTH(NovNed1+23)=11),NovNed1+23,\"\"),IF(AND(YEAR(NovNed1+30)=KoledarskoLeto,MONTH(NovNed1+30)=11),NovNed1+30,\"\"))","v":"2019-11-26"},{"$f":"IF(DAY(NovNed1)=1,IF(AND(YEAR(NovNed1+24)=KoledarskoLeto,MONTH(NovNed1+24)=11),NovNed1+24,\"\"),IF(AND(YEAR(NovNed1+31)=KoledarskoLeto,MONTH(NovNed1+31)=11),NovNed1+31,\"\"))","v":"2019-11-27"},{"$f":"IF(DAY(NovNed1)=1,IF(AND(YEAR(NovNed1+25)=KoledarskoLeto,MONTH(NovNed1+25)=11),NovNed1+25,\"\"),IF(AND(YEAR(NovNed1+32)=KoledarskoLeto,MONTH(NovNed1+32)=11),NovNed1+32,\"\"))","v":"2019-11-28"},{"$f":"IF(DAY(NovNed1)=1,IF(AND(YEAR(NovNed1+26)=KoledarskoLeto,MONTH(NovNed1+26)=11),NovNed1+26,\"\"),IF(AND(YEAR(NovNed1+33)=KoledarskoLeto,MONTH(NovNed1+33)=11),NovNed1+33,\"\"))","v":"2019-11-29"},{"$f":"IF(DAY(NovNed1)=1,IF(AND(YEAR(NovNed1+27)=KoledarskoLeto,MONTH(NovNed1+27)=11),NovNed1+27,\"\"),IF(AND(YEAR(NovNed1+34)=KoledarskoLeto,MONTH(NovNed1+34)=11),NovNed1+34,\"\"))","v":"2019-11-30"},{"$f":"IF(DAY(NovNed1)=1,IF(AND(YEAR(NovNed1+28)=KoledarskoLeto,MONTH(NovNed1+28)=11),NovNed1+28,\"\"),IF(AND(YEAR(NovNed1+35)=KoledarskoLeto,MONTH(NovNed1+35)=11),NovNed1+35,\"\"))","v":""},null,{"$f":"IF(DAY(DecNed1)=1,IF(AND(YEAR(DecNed1+22)=KoledarskoLeto,MONTH(DecNed1+22)=12),DecNed1+22,\"\"),IF(AND(YEAR(DecNed1+29)=KoledarskoLeto,MONTH(DecNed1+29)=12),DecNed1+29,\"\"))","v":"2019-12-23"},{"$f":"IF(DAY(DecNed1)=1,IF(AND(YEAR(DecNed1+23)=KoledarskoLeto,MONTH(DecNed1+23)=12),DecNed1+23,\"\"),IF(AND(YEAR(DecNed1+30)=KoledarskoLeto,MONTH(DecNed1+30)=12),DecNed1+30,\"\"))","v":"2019-12-24"},{"$f":"IF(DAY(DecNed1)=1,IF(AND(YEAR(DecNed1+24)=KoledarskoLeto,MONTH(DecNed1+24)=12),DecNed1+24,\"\"),IF(AND(YEAR(DecNed1+31)=KoledarskoLeto,MONTH(DecNed1+31)=12),DecNed1+31,\"\"))","v":"2019-12-25"},{"$f":"IF(DAY(DecNed1)=1,IF(AND(YEAR(DecNed1+25)=KoledarskoLeto,MONTH(DecNed1+25)=12),DecNed1+25,\"\"),IF(AND(YEAR(DecNed1+32)=KoledarskoLeto,MONTH(DecNed1+32)=12),DecNed1+32,\"\"))","v":"2019-12-26"},{"$f":"IF(DAY(DecNed1)=1,IF(AND(YEAR(DecNed1+26)=KoledarskoLeto,MONTH(DecNed1+26)=12),DecNed1+26,\"\"),IF(AND(YEAR(DecNed1+33)=KoledarskoLeto,MONTH(DecNed1+33)=12),DecNed1+33,\"\"))","v":"2019-12-27"},{"$f":"IF(DAY(DecNed1)=1,IF(AND(YEAR(DecNed1+27)=KoledarskoLeto,MONTH(DecNed1+27)=12),DecNed1+27,\"\"),IF(AND(YEAR(DecNed1+34)=KoledarskoLeto,MONTH(DecNed1+34)=12),DecNed1+34,\"\"))","v":"2019-12-28"},{"$f":"IF(DAY(DecNed1)=1,IF(AND(YEAR(DecNed1+28)=KoledarskoLeto,MONTH(DecNed1+28)=12),DecNed1+28,\"\"),IF(AND(YEAR(DecNed1+35)=KoledarskoLeto,MONTH(DecNed1+35)=12),DecNed1+35,\"\"))","v":"2019-12-29"}]
[null,null,{"$f":"IF(DAY(NovNed1)=1,IF(AND(YEAR(NovNed1+29)=KoledarskoLeto,MONTH(NovNed1+29)=11),NovNed1+29,\"\"),IF(AND(YEAR(NovNed1+36)=KoledarskoLeto,MONTH(NovNed1+36)=11),NovNed1+36,\"\"))","v":""},{"$f":"IF(DAY(NovNed1)=1,IF(AND(YEAR(NovNed1+30)=KoledarskoLeto,MONTH(NovNed1+30)=11),NovNed1+30,\"\"),IF(AND(YEAR(NovNed1+37)=KoledarskoLeto,MONTH(NovNed1+37)=11),NovNed1+37,\"\"))","v":""},{"$f":"IF(DAY(NovNed1)=1,IF(AND(YEAR(NovNed1+31)=KoledarskoLeto,MONTH(NovNed1+31)=11),NovNed1+31,\"\"),IF(AND(YEAR(NovNed1+38)=KoledarskoLeto,MONTH(NovNed1+38)=11),NovNed1+38,\"\"))","v":""},{"$f":"IF(DAY(NovNed1)=1,IF(AND(YEAR(NovNed1+32)=KoledarskoLeto,MONTH(NovNed1+32)=11),NovNed1+32,\"\"),IF(AND(YEAR(NovNed1+39)=KoledarskoLeto,MONTH(NovNed1+39)=11),NovNed1+39,\"\"))","v":""},{"$f":"IF(DAY(NovNed1)=1,IF(AND(YEAR(NovNed1+33)=KoledarskoLeto,MONTH(NovNed1+33)=11),NovNed1+33,\"\"),IF(AND(YEAR(NovNed1+40)=KoledarskoLeto,MONTH(NovNed1+40)=11),NovNed1+40,\"\"))","v":""},{"$f":"IF(DAY(NovNed1)=1,IF(AND(YEAR(NovNed1+34)=KoledarskoLeto,MONTH(NovNed1+34)=11),NovNed1+34,\"\"),IF(AND(YEAR(NovNed1+41)=KoledarskoLeto,MONTH(NovNed1+41)=11),NovNed1+41,\"\"))","v":""},{"$f":"IF(DAY(NovNed1)=1,IF(AND(YEAR(NovNed1+35)=KoledarskoLeto,MONTH(NovNed1+35)=11),NovNed1+35,\"\"),IF(AND(YEAR(NovNed1+42)=KoledarskoLeto,MONTH(NovNed1+42)=11),NovNed1+42,\"\"))","v":""},null,{"$f":"IF(DAY(DecNed1)=1,IF(AND(YEAR(DecNed1+29)=KoledarskoLeto,MONTH(DecNed1+29)=12),DecNed1+29,\"\"),IF(AND(YEAR(DecNed1+36)=KoledarskoLeto,MONTH(DecNed1+36)=12),DecNed1+36,\"\"))","v":"2019-12-30"},{"$f":"IF(DAY(DecNed1)=1,IF(AND(YEAR(DecNed1+30)=KoledarskoLeto,MONTH(DecNed1+30)=12),DecNed1+30,\"\"),IF(AND(YEAR(DecNed1+37)=KoledarskoLeto,MONTH(DecNed1+37)=12),DecNed1+37,\"\"))","v":"2019-12-31"},{"$f":"IF(DAY(DecNed1)=1,IF(AND(YEAR(DecNed1+31)=KoledarskoLeto,MONTH(DecNed1+31)=12),DecNed1+31,\"\"),IF(AND(YEAR(DecNed1+38)=KoledarskoLeto,MONTH(DecNed1+38)=12),DecNed1+38,\"\"))","v":""},{"$f":"IF(DAY(DecNed1)=1,IF(AND(YEAR(DecNed1+32)=KoledarskoLeto,MONTH(DecNed1+32)=12),DecNed1+32,\"\"),IF(AND(YEAR(DecNed1+39)=KoledarskoLeto,MONTH(DecNed1+39)=12),DecNed1+39,\"\"))","v":""},{"$f":"IF(DAY(DecNed1)=1,IF(AND(YEAR(DecNed1+33)=KoledarskoLeto,MONTH(DecNed1+33)=12),DecNed1+33,\"\"),IF(AND(YEAR(DecNed1+40)=KoledarskoLeto,MONTH(DecNed1+40)=12),DecNed1+40,\"\"))","v":""},{"$f":"IF(DAY(DecNed1)=1,IF(AND(YEAR(DecNed1+34)=KoledarskoLeto,MONTH(DecNed1+34)=12),DecNed1+34,\"\"),IF(AND(YEAR(DecNed1+41)=KoledarskoLeto,MONTH(DecNed1+41)=12),DecNed1+41,\"\"))","v":""},{"$f":"IF(DAY(DecNed1)=1,IF(AND(YEAR(DecNed1+35)=KoledarskoLeto,MONTH(DecNed1+35)=12),DecNed1+35,\"\"),IF(AND(YEAR(DecNed1+42)=KoledarskoLeto,MONTH(DecNed1+42)=12),DecNed1+42,\"\"))","v":""}]